Workbook

Sheet Open
A2: Southwestern Farms Sept 11 2021
A3: FUT | B3: DER | C3: Age Inc | D3: HS | E3: Y/co | F3: Youth | G3: Draw | H3: Rider Name | I3: Horse Name | J3: Pen | K3: Time | L3: Placing | M3: Money Earned | O3: D Placing | Q3: Split
A4: X | C4: A | G4: 28 | H4: Jamie Wilson | I4: French Cinnamon | K4: 15.838 | L4: 1D 3rd | M4: 583.68 | O4: 1D | P4: 15.677
A5: X | G5: 162 | H5: Kylie Bowles | I5: Slick A Lena | K5: 15.905 | L5: 1D 6th | M5: 153.6 | O5: 2D | P5: =SUM(P4+0.5) -> 16.177 | Q5: 0.5
A6: X | G6: 77 | H6: Jessie Domann | I6: A Dash Of Choclate | K6: 16.107 | O6: 3D | P6: =SUM(P4+1) -> 16.677 | Q6: 0.5
A7: X | G7: 48 | H7: Kyra Boling | I7: Shesa Heaven Sent | K7: 16.261 | L7: 2D 2nd | M7: 614.4 | O7: 4D | P7: =SUM(P4+1.5) -> 17.177 | Q7: 0.5
A8: X | G8: 82 | H8: Billie Ann Harmon | I8: Zero Judgement | K8: 16.262 | L8: 2D 3rd | M8: 486.4 | O8: 5D | P8: =SUM(P4+2) -> 17.677 | Q8: 0.5
A9: X | G9: 116 | H9: Billie Ann Harmon | I9: The Dungaree Moon | K9: 16.49
A10: X | G10: 41 | H10: Jessie Domann | I10: Tres Down The Fame | K10: 16.586 | O10: # Entered
A11: X | C11: A | G11: 33 | H11: Pete Oen | I11: Unbroken Belle | K11: 16.592 | O11: =COUNTA(H4:H503) -> 211
A12: X | G12: 168 | H12: Lauren Strough | I12: Drifting For Dineros | K12: 16.689
A13: X | C13: A | G13: 135 | H13: Kaylyn Smith | I13: Bet She Can Fly | K13: 16.782 | L13: 3D 3rd | M13: 389.12 | O13: # Ran
A14: X | C14: A | G14: 100 | H14: Kimberly Hulme | I14: Happy Olena Gin | K14: 18.114 | O14: =COUNTA(K4:K503) -> 211
A15: X | C15: A | G15: 181 | H15: Randi Roberts | I15: Colour Chart | K15: 917.643
A16: X | C16: A | G16: 199 | H16: Bianca Dos Santos | I16: Streakinlikaleo | K16: 917.703 | O16: # Left
D17: X | G17: 46 | H17: Tyler Rivette | I17: Streakin Flingin Disco | K17: 15.858 | L17: 1D 4th | M17: 430.08 | O17: =$O$11-$O$14 -> 0
C18: A | D18: X | G18: 142 | H18: Megan McKerchie | I18: Ciroc | K18: 15.882 | L18: 1D 5th | M18: 276.48
C19: A | D19: X | G19: 14 | H19: Carolina Kelly | I19: Hesa Dashin Dreamer | K19: 16.176
B20: X | D20: X | G20: 118 | H20: Tyler Rivette | I20: Flingin Roses | K20: 16.188
C21: A | D21: X | G21: 156 | H21: Lainie Whitmire | I21: Bullseye Bullion | K21: 16.222
D22: X | E22: X | F22: X | G22: 158 | H22: Tristan Bowles | I22: Short Okie Lena | K22: 16.487
B23: X | C23: A | D23: X | G23: 67 | H23: Jamie Wilson | I23: KN Luna | K23: 16.54
C24: A | D24: X | G24: 104 | H24: Lainie Whitmire | I24: Dash Ta Kill | K24: 20.5
C25: A | D25: X | G25: 229 | H25: Chani Graves | I25: Im Little Bit Famous | K25: 915.552
B26: X | C26: A | D26: X | G26: 134 | H26: Pete Oen | I26: VC GoGo Fling | K26: 915.91
C27: A | D27: X | G27: 193 | H27: Chani Graves | I27: Shiney Cartel | K27: 916.052
G28: 133 | H28: Patty Clark | I28: Dashin Bob | K28: 15.76 | L28: 1D 1st | M28: 890.88
G29: 24 | H29: Krista Whitley | I29: Fabulace Fame | K29: 15.818 | L29: 1D 2nd | M29: 737.28
G30: 91 | H30: Gabbie Grothe | I30: Sold Out | K30: 16.009
G31: 141 | H31: Danyelle Campbell | I31: AR Dash Ta Flame | K31: 16.079
C32: S | G32: 52 | H32: Lisa Wernli | I32: Flashs Fine Effort | K32: 16.096
G33: 108 | H33: Stevie Perkins | I33: My Traffic Guy | K33: 16.139
G34: 201 | H34: McKinley Goodger | I34: Fame Us First Lady | K34: 16.146
G35: 182 | H35: Sam Lindenfeld | I35: A Boy Named Sue | K35: 16.158
B36: X | C36: A | G36: 97 | H36: Pete Oen | I36: VF Shes Home Alone | K36: 16.159
G37: 76 | H37: Lacy Billingsley | I37: PV Watchmeneighneigh | K37: 16.164
G38: 186 | H38: Kassidy McKee | I38: KN Mister Fabulous | K38: 16.175
G39: 197 | H39: Heidi Becker | I39: No Lion Kims Flying | K39: 16.176
G40: 203 | H40: Maci Kirby | I40: Sheza Maximum Bug Leo | K40: 16.179
C41: A | G41: 169 | H41: Brian Ramirez | I41: Holly | K41: 16.204
C42: S | G42: 61 | H42: Julie Hardcastle | I42: RCJ See Here Now | K42: 16.208
G43: 170 | H43: McKinley Goodger | I43: Machine Gun Kelli | K43: 16.248
G44: 72 | H44: Hannah Hertel | I44: Lenasdashtavictory | K44: 16.26 | L44: 2D 1st | M44: 742.4
C45: A | G45: 58 | H45: Megan Best | I45: LCR Cash N Guys | K45: 16.27 | L45: 2D 4th | M45: 358.4
E46: X | F46: X | G46: 194 | H46: Lila Jardine | K46: 16.287 | L46: 2D 5th | M46: 230.4
G47: 103 | H47: Rylan Heller | K47: 16.3 | L47: 2D 6th | M47: 128
G48: 54 | H48: Lindsay Bullard | I48: First Down Deception | K48: 16.309
G49: 81 | H49: Christi Durfey | I49: Gordon | K49: 16.31
E50: X | F50: X | G50: 179 | H50: Jo Lindenfeld | I50: Dash Ta Zevi | K50: 16.32
C51: S | G51: 122 | H51: Tammy Rokus | I51: Mitey Confederate | K51: 16.323
G52: 78 | H52: Jenna Napier | I52: Frenchmans Dually | K52: 16.326
C53: A | G53: 99 | H53: Denny Ralls | I53: SV Southern Comfort | K53: 16.327
C54: A | G54: 73 | H54: Delaney Siebert | I54: Guys Classy Colours | K54: 16.332
G55: 164 | H55: Sherri Barnes | I55: Ike | K55: 16.346
G56: 16 | H56: Maggie Pytlik | I56: Karma | K56: 16.389
C57: S | G57: 129 | H57: Amy Swan | I57: Boons Prescription | K57: 16.414
G58: 47 | H58: Jade Crago | I58: Nitros Next Topmodel | K58: 16.431
E59: X | F59: X | G59: 149 | H59: Hevenli Scribner | I59: JSH Lucky Bottom Roy | K59: 16.449
G60: 34 | H60: Jo Fisher | K60: 16.459
G61: 187 | H61: Taryn Parsonage | I61: Twitch | K61: 16.459
G62: 84 | H62: Natalie Bland | I62: Bayou A Cold One | K62: 16.466
B63: X | C63: A | G63: 86 | H63: Jennifer Cullen | I63: Chasin Annies Fame | K63: 16.479
G64: 11 | H64: Jade Crago | I64: High Road Ta Fame | K64: 16.481
G65: 172 | H65: Morgan Dalchow | I65: Perfect Runaway | K65: 16.486
G66: 106 | H66: Baylee Oleary | I66: VR Famous Sixshooter | K66: 16.488
G67: 74 | H67: Lauren Strough | I67: Sonny | K67: 16.496
G68: 136 | H68: Nisa Berry | K68: 16.504
C69: A | G69: 49 | H69: Londyn Ross | I69: Kicken Paco | K69: 16.549
G70: 7 | H70: Tyler Rivette | I70: Additcted To Bugattis | K70: 16.574
G71: 102 | H71: Macy Brown | I71: CD Fast N Famous | K71: 16.582
G72: 152 | H72: Paige Dawson | K72: 16.596
G73: 42 | H73: Teneille Angland | I73: Captain | K73: 16.598
C74: S | G74: 69 | H74: Kimberly Teague | I74: Best Ta Fame | K74: 16.6
G75: 190 | H75: Candice Jammer | I75: Fame | K75: 16.608
G76: 151 | H76: Madison Smith | I76: Little Catty Kitty | K76: 16.621
G77: 51 | H77: Carolina Kelly | I77: Heavenly déjà vu | K77: 16.63
C78: S | G78: 70 | H78: Jolene Jones | I78: Mark Me Angels | K78: 16.637
C79: S | G79: 95 | H79: Lisa Wernli | I79: Babe On The Run | K79: 16.67
G80: 4 | H80: Billie Ann Harmon | I80: Quigleys Fantasy | K80: 16.67
G81: 80 | H81: Tyler Rivette | I81: HR Addicted Ta Fame | K81: 16.696
C82: S | G82: 89 | H82: Lynn Saunders | I82: chumly | K82: 16.7
C83: A | G83: 128 | H83: Jennifer Abbott | I83: Wendal Jackson | K83: 16.736
G84: 198 | H84: Lauren Merica | I84: GoGo Romeo | K84: 16.74
G85: 173 | H85: Mary Sanders | I85: Firewater Dulux | K85: 16.751
G86: 110 | H86: Paige Dawson | K86: 16.775 | L86: 3D 1st | M86: 593.92
G87: 66 | H87: Camelia Jenkins | I87: Trigger | K87: 16.779 | L87: 3D 2nd | M87: 491.52
G88: 39 | H88: Mandi Boychuk | I88: Dixies Outlaw | K88: 16.808 | L88: 3D 4th | M88: 286.72
G89: 140 | H89: Rylan Heller | K89: 16.817 | L89: 3D 5th | M89: 184.32
G90: 75 | H90: Sydney Swatsell | I90: Smalls | K90: 16.819 | L90: 3D 6th | M90: 102.4
G91: 192 | H91: Bobbie Stone | I91: Six Dashes Of Perk | K91: 16.835
C92: A | G92: 155 | H92: Randi Roberts | I92: Dashin With The Best | K92: 16.836
C93: A | G93: 68 | H93: Brooke Kelley | I93: No Bueno Karma | K93: 16.849
G94: 127 | H94: Raney Nelson | I94: Stonee Bug Leo | K94: 16.85
G95: 144 | H95: April Pride | I95: SFW Frosty Firewater | K95: 16.85
G96: 36 | H96: Jo Fisher | K96: 16.856
G97: 112 | H97: Bailey Donahoo | I97: AR Boot Scootin Star | K97: 16.87
G98: 138 | H98: April Flook | I98: Spratts Twerp | K98: 16.886
G99: 145 | H99: Misty Peek | I99: Amos | K99: 16.887
G100: 44 | H100: Caitlin Loomis | I100: Gold Mines Quien | K100: 16.893
B101: X | E101: X | F101: X | G101: 19 | H101: Cienna Jacobsen | I101: Straight Up Smooth | K101: 16.905
G102: 150 | H102: Samanta Grimsley | I102: DFS Special Sambo | K102: 16.906
G103: 101 | H103: Trudy Bazzell | I103: Votivo | K103: 16.913
G104: 26 | H104: Shantell Hayes | K104: 16.953
G105: 21 | H105: Kerrie Cannon | I105: Patch | K105: 16.963
C106: A | G106: 64 | H106: Lauren Kelly | I106: Frenchmans Dial | K106: 16.964
G107: 55 | H107: Maggie Pytlik | I107: Rhett | K107: 16.967
C108: A | G108: 227 | H108: Candice Jammer | I108: Big Girl | K108: 16.976
G109: 166 | H109: Savannah Lindau | I109: Separatist Paddy | K109: 16.989
G110: 9 | H110: Kyra Boling | I110: Cheri Catt | K110: 16.991
G111: 195 | H111: Caitlyn Schievink | I111: KN Mojito Over Rocks | K111: 17.016
C112: S | G112: 27 | H112: Simone Elmore | I112: Mitey Moon Dash | K112: 17.024
G113: 175 | H113: Michayla Schmitt | I113: KN Fabulous On Top | K113: 17.03
G114: 18 | H114: Lylan Corey | I114: Honey Boon Lilly | K114: 17.045
C115: A | G115: 176 | H115: Kylee Butts | I115: Remin Party Girl | K115: 17.051
G116: 117 | H116: Cassidy Borges | K116: 17.075
G117: 119 | H117: Kylyn Baker | I117: Premo | K117: 17.088
C118: A | G118: 30 | H118: Jennifer Abbott | I118: Blazin Wagon | K118: 17.103
G119: 25 | H119: Martie Shockley | I119: Spraklin French Wine | K119: 17.103
E120: X | F120: X | G120: 231 | H120: Lila Jardine | K120: 17.14
G121: 17 | H121: Lindsay Bullard | I121: KD Baby Driver | K121: 17.141
G122: 114 | H122: Gretchen Goedeken | I122: Fine Whatever | K122: 17.149
G123: 15 | H123: Krista Wynn | I123: CM Bodee Bullion | K123: 17.164
G124: 121 | H124: Aerial Eggers | I124: SN Apollo | K124: 17.169
G125: 113 | H125: Jessie Domann | I125: Pepto Lights | K125: 17.194
G126: 32 | H126: Katie Garcia | K126: 17.206
C127: S | G127: 189 | H127: Jo Kirby | I127: Shez Fast For Cash | K127: 17.219
G128: 148 | H128: Stevie Perkins | I128: A Fun Frenchman | K128: 17.22
G129: 120 | H129: Perry McMillan | I129: Mac | K129: 17.231
G130: 12 | H130: Camelia Jenkins | I130: Groove | K130: 17.249
G131: 43 | H131: Billie Ann Harmon | I131: Famous Disco Bugs | K131: 17.249
G132: 98 | H132: Jaidyn Ornelas | I132: Sizzle Stick | K132: 17.254
G133: 20 | H133: Lee Ann Guilkey | I133: Junior | K133: 17.262 | L133: 4D 1st | M133: 445.44
C134: A | G134: 2 | H134: Katie Kapanick | I134: Pistol Packin Lark | K134: 17.28 | L134: 4D 2nd | M134: 368.64
G135: 8 | H135: Jill Haworth | I135: What a Anne Oakley | K135: 17.289 | L135: 4D 3rd | M135: 291.84
C136: A | G136: 230 | H136: Randi Roberts | I136: Frost On My Nick Bar | K136: 17.313 | L136: 4D 4th | M136: 215.04
C137: A | G137: 115 | H137: Megan McKerchie | I137: Corona | K137: 17.321 | L137: 4D 5th | M137: 138.24
E138: X | F138: X | G138: 79 | H138: Kaylee Lehrmann | I138: KL Dashing Shine | K138: 17.347 | L138: 4D 6th | M138: 76.8
G139: 56 | H139: Lisa Jo Velliquette | I139: Namgis D 44 | K139: 17.354
C140: A | G140: 65 | H140: Pete Oen | I140: Joseys Agouta | K140: 17.389
G141: 5 | H141: Jessie Domann | I141: My Chromie By Design | K141: 17.392
C142: A | G142: 83 | H142: Katie Swanson | I142: RB A Streakin | K142: 17.422
G143: 87 | H143: Lauren Howe | I143: Eddies Frosted Corona | K143: 17.425
G144: 105 | H144: Sarah Rau | I144: Sexy | K144: 17.446
G145: 154 | H145: Kristy Scribner | I145: Ricky | K145: 17.461
G146: 161 | H146: Gretchen Goedeken | I146: Spot | K146: 17.499
G147: 29 | H147: KC Daragan | I147: Pritzi Streakin Dash | K147: 17.532
G148: 191 | H148: Bailey Donahoo | K148: 17.597
G149: 171 | H149: April Pride | I149: Don’t Call Me Hank | K149: 17.61
C150: S | G150: 126 | H150: Debra Cooper | K150: 17.625
G151: 107 | H151: Alexis Dieckman | I151: SB Smoke On The Water | K151: 17.627
G152: 88 | H152: Katie Garcia | K152: 17.63
C153: S | G153: 31 | H153: Jolene Jones | I153: THC Super Bully | K153: 17.631
G154: 177 | H154: Samanta Grimsley | I154: Panama Dual | K154: 17.644
C155: S | G155: 188 | H155: Karen Hancock | I155: Just Another Streak | K155: 17.695
C156: A | G156: 132 | H156: Erin Mantz | I156: Docabid | K156: 17.729
G157: 96 | H157: Alexi Schaapveld | I157: Spendy By Design | K157: 17.746
E158: X | F158: X | G158: 213 | H158: Jo Lindenfeld | I158: Jackie | K158: 17.761 | L158: 5D 1st | M158: 296.96
G159: 146 | H159: Sarah Rau | K159: 17.775 | L159: 5D 2nd | M159: 245.76
G160: 180 | H160: Bill Barber | I160: Tyke | K160: 17.822 | L160: 5D 3rd | M160: 194.56
G161: 139 | H161: Debrah McLeod | K161: 17.878 | L161: 5D 4th | M161: 143.36
G162: 92 | H162: Perry McMillan | I162: My Rock Of Love | K162: 17.88 | L162: 5D 5th | M162: 92.16
F163: X | G163: 157 | H163: Olivia Martin | I163: Dollar | K163: 17.962 | L163: 5D 6th | M163: 51.2
G164: 165 | H164: Abigail Wicker | I164: So Guys Top Stick | K164: 17.981
G165: 159 | H165: Holly Pritchard | K165: 17.988
G166: 183 | H166: Heather Glover | I166: Peps Diamond Hickory | K166: 18.001
G167: 111 | H167: Jacy Mathis | I167: Cisco | K167: 18.03
C168: S | G168: 94 | H168: Judy McReynolds | I168: Genuine Honey | K168: 18.043
G169: 57 | H169: Krista Wynn | I169: TBR Streak Of Perks | K169: 18.146
G170: 71 | H170: Anisa Coates | I170: Blazin Nike | K170: 18.182
G171: 200 | H171: Bailey Davis | I171: Scooter | K171: 18.275
G172: 50 | H172: Jaidyn Ornelas | K172: 18.309
G173: 214 | H173: Jenna Graf | I173: Sadies Iceman | K173: 18.383
F174: X | G174: 109 | H174: Olivia Martin | I174: Casper | K174: 18.492
G175: 163 | H175: Richard Moore | I175: RT Miss Drifter 315 | K175: 18.516
C176: A | G176: 167 | H176: Riley Welch | I176: Shortcake | K176: 18.868
G177: 174 | H177: Tiffany Davis | I177: Who's Joe | K177: 18.93
G178: 137 | H178: Kelsey Ornelas | I178: Boom Boom | K178: 18.954
G179: 160 | H179: Jim McKinney | I179: Amos | K179: 18.978
G180: 228 | H180: Abigail Wicker | I180: Silk Or Satin | K180: 25.32
B181: X | G181: 6 | H181: Wyatt Paul | I181: FC Strait Cajun | K181: 915.739
C182: A | G182: 1 | H182: Pete Oen | I182: Margarita Red Rita | K182: 915.872
G183: 185 | H183: Jeannie McKee | I183: Streak Of Pleasure | K183: 916.062
E184: X | F184: X | G184: 93 | H184: Hadley Durfey | I184: Ivy | K184: 916.478
C185: S | G185: 123 | H185: Jodi Stovall | I185: Frenchie | K185: 916.5
G186: 40 | H186: Emily Holder | I186: Lions Share Of Cash | K186: 916.541
G187: 196 | H187: Kathy Muehlen | I187: Pay Me First | K187: 916.557
G188: 23 | H188: Lacy Kimball | I188: Stayabay | K188: 916.57
G189: 125 | H189: Gabbie Grothe | I189: Dun Wrangled A Star | K189: 916.571
G190: 62 | H190: Krista Whitley | I190: Plain Jane Bully | K190: 916.577
G191: 215 | H191: Taryn Parsonage | I191: Jo | K191: 916.715
G192: 59 | H192: Rayme Jones | I192: ND Firewater Brandy | K192: 916.902
G193: 184 | H193: Jenna Graf | I193: Traffic Runaway Train | K193: 916.94
E194: X | F194: X | G194: 153 | H194: Talon Pride | I194: Itty Bitt Jack | K194: 916.945
B195: X | G195: 37 | H195: Ashley Harvey | I195: OE Money In My Socks | K195: 917.051
C196: S | G196: 38 | H196: Lynn Saunders | I196: Popcorn | K196: 917.095
G197: 202 | H197: Bailey Marks | I197: Tommy | K197: 917.116
G198: 131 | H198: Lilly Quinn | I198: Chica | K198: 917.485
F199: X | G199: 53 | H199: Stormi Branch | I199: Baba | K199: 917.81
G200: 10 | H200: Lexi Rankin | I200: RRRFLINGMEADREAM | K200: 918.136
G201: 60 | H201: Alexis Malveaux | I201: High On The Ladies | K201: 920.372
... 302 more rows

Sheet Senior
A1: Futurity | B1: Der | C1: Senior | D1: BBR | E1: Draw | F1: Rider Name | G1: Horse Name | H1: Time | I1: Placing | J1: Money Earned
E2: 1 | F2: Lisa Wernli | G2: Flashs Fine Effort | H2: 16.096 | I2: 1D 1st | J2: 112
E3: 2 | F3: Julie Hardcastle | G3: RCJ See Here Now | H3: 16.208
E4: 3 | F4: Tammy Rokus | G4: Mitey Confederate | H4: 16.323
E5: 4 | F5: Amy Swan | G5: Boons Prescription | H5: 16.414
E6: 5 | F6: Kimberly Teague | G6: Best Ta Fame | H6: 16.6 | I6: 2D 1st | J6: 96
E7: 6 | F7: Jolene Jones | G7: Mark Me Angels | H7: 16.637
E8: 7 | F8: Lisa Wernli | G8: Babe On The Run | H8: 16.67
E9: 8 | F9: Lynn Saunders | G9: chumly | H9: 16.7
E10: 9 | F10: Simone Elmore | G10: Mitey Moon Dash | H10: 17.024
E11: 10 | F11: Jo Kirby | G11: Shez Fast For Cash | H11: 17.219 | I11: 3D 1st | J11: 64
E12: 11 | F12: Debra Cooper | H12: 17.625 | I12: 4D 1st | J12: 48
E13: 12 | F13: Jolene Jones | G13: THC Super Bully | H13: 17.631
E14: 13 | F14: Karen Hancock | G14: Just Another Streak | H14: 17.695
E15: 14 | F15: Judy McReynolds | G15: Genuine Honey | H15: 18.043
E16: 15 | F16: Jodi Stovall | G16: Frenchie | H16: 916.5
E17: 16 | F17: Lynn Saunders | G17: Popcorn | H17: 917.095
E18: 17
E19: 18
E20: 19
E21: 20
E22: 21
E23: 22
E24: 23
E25: 25
E26: 26
E27: 27
E28: 28
E29: 29
E30: 30
E31: 31
E32: 32
E33: 24
E34: 33
E35: 34
E36: 35
E37: 36
E38: 37
E39: 38
E40: 39
E41: 40
E42: 41
E43: 42
E44: 43
E45: 44
E46: 45
E47: 46
E48: 47
E49: 48
E50: 49
E51: 50
E52: 51
E53: 52
E54: 53
E55: 54
E56: 55
E57: 56
E58: 57
E59: 58
E60: 59
E61: 60
E62: 61
E63: 62
E64: 63
E65: 64
E66: 65
E67: 66
E68: 67
E69: 68
E70: 69
E71: 70
E72: 71
E73: 72
E74: 73
E75: 74
E76: 75
E77: 76
E78: 77
E79: 78
E80: 79
E81: 80
E82: 81
E83: 82
E84: 83
E85: 84
E86: 85
E87: 86
E88: 87
E89: 88
E90: 89
E91: 90
E92: 91
E93: 92
E94: 93
E95: 94
E96: 95
E97: 96
E98: 97
E99: 98
E100: 99
E101: 100
E102: 101
E103: 102
E104: 103
E105: 104
E106: 105
E107: 106
E108: 107
E109: 108
E110: 109
E111: 110
E112: 111
E113: 112
E114: 113
E115: 114
E116: 115
E117: 116
E118: 117
E119: 118
E120: 119
E121: 120
E122: 121
E123: 122
E124: 123
E125: 124
E126: 125
E127: 126
E128: 127
E129: 128
E130: 129
E131: 130
E132: 131
E133: 132
E134: 133
E135: 134
E136: 135
E137: 136
E138: 137
E139: 138
E140: 139
E141: 140
E142: 141
E143: 142
E144: 143
E145: 144
E146: 145
E147: 146
E148: 147
E149: 148
E150: 149
E151: 150
E152: 151
E153: 152
E154: 153
E155: 154
E156: 155
E157: 156
E158: 157
E159: 158
E160: 159
E161: 160
E162: 161
E163: 162
E164: 163
E165: 164
E166: 165
E167: 166
E168: 167
E169: 168
E170: 169
E171: 170
E172: 171
E173: 172
E174: 173
E175: 174
E176: 175
E177: 176
E178: 177
E179: 178
E180: 179
E181: 180
E182: 181
E183: 182
E184: 183
E185: 184
E186: 185
E187: 186
E188: 187
E189: 188
E190: 189
E191: 190
E192: 191
E193: 192
E194: 193
E195: 194
E196: 195
E197: 196
E198: 197
E199: 198
E200: 199
... 101 more rows

Sheet Adult
A1: Futurity | B1: Der | C1: Adult | D1: BBR | E1: Draw | F1: Rider Name | G1: Horse Name | H1: Time | I1: Placing | J1: Money Earned
E2: 1 | F2: Jamie Wilson | G2: French Cinnamon | H2: 15.838 | I2: 1D 1st | J2: 147
E3: 2 | F3: Megan McKerchie | G3: Ciroc | H3: 15.882 | I3: 1D 2nd | J3: 98
E4: 3 | F4: Pete Oen | G4: VF Shes Home Alone | H4: 16.159
E5: 4 | F5: Carolina Kelly | G5: Hesa Dashin Dreamer | H5: 16.176
E6: 5 | F6: Brian Ramirez | G6: Holly | H6: 16.204
E7: 6 | F7: Lainie Whitmire | G7: Bullseye Bullion | H7: 16.222
E8: 7 | F8: Megan Best | G8: LCR Cash N Guys | H8: 16.27
E9: 8 | F9: Denny Ralls | G9: SV Southern Comfort | H9: 16.327
E10: 9 | F10: Delaney Siebert | G10: Guys Classy Colours | H10: 16.332
E11: 10 | F11: Jennifer Cullen | G11: Chasin Annies Fame | H11: 16.479 | I11: 2D 1st | J11: 126
E12: 11 | F12: Jamie Wilson | G12: KN Luna | H12: 16.54 | I12: 2D 2nd | J12: 84
E13: 22 | F13: Londyn Ross | G13: Kicken Paco | H13: 16.549
E14: 12 | F14: Pete Oen | G14: Unbroken Belle | H14: 16.592
E15: 13 | F15: Jennifer Abbott | G15: Wendal Jackson | H15: 16.736
E16: 14 | F16: Kaylyn Smith | G16: Bet She Can Fly | H16: 16.782
E17: 15 | F17: Randi Roberts | G17: Dashin With The Best | H17: 16.836
E18: 16 | F18: Brooke Kelley | G18: No Bueno Karma | H18: 16.849 | I18: 3D 1st | J18: 84
E19: 17 | F19: Lauren Kelly | G19: Frenchmans Dial | H19: 16.964 | I19: 3D 2nd | J19: 56
E20: 18 | F20: Candice Jammer | G20: Big Girl | H20: 16.976
E21: 19 | F21: Kylee Butts | G21: Remin Party Girl | H21: 17.051
E22: 20 | F22: Jennifer Abbott | G22: Blazin Wagon | H22: 17.103
E23: 21 | F23: Katie Kapanick | G23: Pistol Packin Lark | H23: 17.28
E24: 23 | F24: Randi Roberts | G24: Frost On My Nick Bar | H24: 17.313
E25: 24 | F25: Megan McKerchie | G25: Corona | H25: 17.321
E26: 25 | F26: Pete Oen | G26: Joseys Agouta | H26: 17.389 | I26: 4D 1st | J26: 63
E27: 26 | F27: Katie Swanson | G27: RB A Streakin | H27: 17.422 | I27: 4D 2nd | J27: 42
E28: 27 | F28: Erin Mantz | G28: Docabid | H28: 17.729
E29: 28 | F29: Kimberly Hulme | G29: Happy Olena Gin | H29: 18.114
E30: 29 | F30: Riley Welch | G30: Shortcake | H30: 18.868
E31: 30 | F31: Lainie Whitmire | G31: Dash Ta Kill | H31: 20.5
E32: 31 | F32: Chani Graves | G32: Im Little Bit Famous | H32: 915.552
E33: 32 | F33: Pete Oen | G33: Margarita Red Rita | H33: 915.872
E34: 33 | F34: Pete Oen | G34: VC GoGo Fling | H34: 915.91
E35: 34 | F35: Chani Graves | G35: Shiney Cartel | H35: 916.052
E36: 35 | F36: Randi Roberts | G36: Colour Chart | H36: 917.643
E37: 36 | F37: Bianca Dos Santos | G37: Streakinlikaleo | H37: 917.703
E38: 37
E39: 38
E40: 39
E41: 40
E42: 41
E43: 42
E44: 43
E45: 44
E46: 45
E47: 46
E48: 47
E49: 48
E50: 49
E51: 50
E52: 51
E53: 52
E54: 53
E55: 54
E56: 55
E57: 56
E58: 57
E59: 58
E60: 59
E61: 60
E62: 61
E63: 62
E64: 63
E65: 64
E66: 65
E67: 66
E68: 67
E69: 68
E70: 69
E71: 70
E72: 71
E73: 72
E74: 73
E75: 74
E76: 75
E77: 76
E78: 77
E79: 78
E80: 79
E81: 80
E82: 81
E83: 82
E84: 83
E85: 84
E86: 85
E87: 86
E88: 87
E89: 88
E90: 89
E91: 90
E92: 91
E93: 92
E94: 93
E95: 94
E96: 95
E97: 96
E98: 97
E99: 98
E100: 99
E101: 100
E102: 101
E103: 102
E104: 103
E105: 104
E106: 105
E107: 106
E108: 107
E109: 108
E110: 109
E111: 110
E112: 111
E113: 112
E114: 113
E115: 114
E116: 115
E117: 116
E118: 117
E119: 118
E120: 119
E121: 120
E122: 121
E123: 122
E124: 123
E125: 124
E126: 125
E127: 126
E128: 127
E129: 128
E130: 129
E131: 130
E132: 131
E133: 132
E134: 133
E135: 134
E136: 135
E137: 136
E138: 137
E139: 138
E140: 139
E141: 140
E142: 141
E143: 142
E144: 143
E145: 144
E146: 145
E147: 146
E148: 147
E149: 148
E150: 149
E151: 150
E152: 151
E153: 152
E154: 153
E155: 154
E156: 155
E157: 156
E158: 157
E159: 158
E160: 159
E161: 160
E162: 161
E163: 162
E164: 163
E165: 164
E166: 165
E167: 166
E168: 167
E169: 168
E170: 169
E171: 170
E172: 171
E173: 172
E174: 173
E175: 174
E176: 175
E177: 176
E178: 177
E179: 178
E180: 179
E181: 180
E182: 181
E183: 182
E184: 183
E185: 184
E186: 185
E187: 186
E188: 187
E189: 188
E190: 189
E191: 190
E192: 191
E193: 192
E194: 193
E195: 194
E196: 195
E197: 196
E198: 197
E199: 198
E200: 199
... 101 more rows

Sheet Youth
A1: Futurity | B1: Der | C1: Youth | D1: BBR | E1: Draw | F1: Rider Name | G1: Horse Name | H1: Time | I1: Placing | J1: Money Earned
E2: 1 | F2: Lila Jardine | H2: 16.287 | I2: 1D 1st | J2: 127
E3: 2 | F3: Jo Lindenfeld | G3: Dash Ta Zevi | H3: 16.32
E4: 3 | F4: Hevenli Scribner | G4: JSH Lucky Bottom Roy | H4: 16.449
E5: 4 | F5: Tristan Bowles | G5: Short Okie Lena | H5: 16.487
E6: 5 | F6: Cienna Jacobsen | G6: Straight Up Smooth | H6: 16.905 | I6: 2D 1st | J6: 109
E7: 6 | F7: Lila Jardine | H7: 17.14
E8: 7 | F8: Kaylee Lehrmann | G8: KL Dashing Shine | H8: 17.347 | I8: 3D 1st | J8: 73
E9: 8 | F9: Jo Lindenfeld | G9: Jackie | H9: 17.761
E10: 9 | F10: Olivia Martin | G10: Dollar | H10: 17.962 | I10: 4D 1st | J10: 55
E11: 10 | F11: Olivia Martin | G11: Casper | H11: 18.492
E12: 11 | F12: Hadley Durfey | G12: Ivy | H12: 916.478
E13: 12 | F13: Talon Pride | G13: Itty Bitt Jack | H13: 916.945
E14: 13 | F14: Stormi Branch | G14: Baba | H14: 917.81
E15: 14
E16: 15
E17: 16
E18: 17
E19: 18
E20: 19
E21: 20
E22: 21
E23: 22
E24: 23
E25: 24
E26: 25
E27: 26
E28: 27
E29: 28
E30: 29
E31: 30
E32: 31
E33: 32
E34: 33
E35: 34
E36: 35
E37: 36
E38: 37
E39: 38
E40: 39
E41: 40
E42: 41
E43: 42
E44: 43
E45: 44
E46: 45
E47: 46
E48: 47
E49: 48
E50: 49
E51: 50
E52: 51
E53: 52
E54: 53
E55: 54
E56: 55
E57: 56
E58: 57
E59: 58
E60: 59
E61: 60
E62: 61
E63: 62
E64: 63
E65: 64
E66: 65
E67: 66
E68: 67
E69: 68
E70: 69
E71: 70
E72: 71
E73: 72
E74: 73
E75: 74
E76: 75
E77: 76
E78: 77
E79: 78
E80: 79
E81: 80
E82: 81
E83: 82
E84: 83
E85: 84
E86: 85
E87: 86
E88: 87
E89: 88
E90: 89
E91: 90
E92: 91
E93: 92
E94: 93
E95: 94
E96: 95
E97: 96
E98: 97
E99: 98
E100: 99
E101: 100
E102: 101
E103: 102
E104: 103
E105: 104
E106: 105
E107: 106
E108: 107
E109: 108
E110: 109
E111: 110
E112: 111
E113: 112
E114: 113
E115: 114
E116: 115
E117: 116
E118: 117
E119: 118
E120: 119
E121: 120
E122: 121
E123: 122
E124: 123
E125: 124
E126: 125
E127: 126
E128: 127
E129: 128
E130: 129
E131: 130
E132: 131
E133: 132
E134: 133
E135: 134
E136: 135
E137: 136
E138: 137
E139: 138
E140: 139
E141: 140
E142: 141
E143: 142
E144: 143
E145: 144
E146: 145
E147: 146
E148: 147
E149: 148
E150: 149
E151: 150
E152: 151
E153: 152
E154: 153
E155: 154
E156: 155
E157: 156
E158: 157
E159: 158
E160: 159
E161: 160
E162: 161
E163: 162
E164: 163
E165: 164
E166: 165
E167: 166
E168: 167
E169: 168
E170: 169
E171: 170
E172: 171
E173: 172
E174: 173
E175: 174
E176: 175
E177: 176
E178: 177
E179: 178
E180: 179
E181: 180
E182: 181
E183: 182
E184: 183
E185: 184
E186: 185
E187: 186
E188: 187
E189: 188
E190: 189
E191: 190
E192: 191
E193: 192
E194: 193
E195: 194
E196: 195
E197: 196
E198: 197
E199: 198
E200: 199
... 101 more rows

Sheet Derby
A1: Futurity | B1: Derby | C1: Age Inct. | D1: BBR | E1: Draw | F1: Rider Name | G1: Horse Name | H1: Time | I1: Placing | J1: Money Earned
E2: 1 | F2: Pete Oen | G2: VF Shes Home Alone | H2: 16.159 | I2: 1st | J2: 192
E3: 2 | F3: Tyler Rivette | G3: Flingin Roses | H3: 16.188 | I3: 2nd | J3: 128
E4: 3 | F4: Jennifer Cullen | G4: Chasin Annies Fame | H4: 16.479
E5: 4 | F5: Jamie Wilson | G5: KN Luna | H5: 16.54
E6: 5 | F6: Cienna Jacobsen | G6: Straight Up Smooth | H6: 16.905
E7: 6 | F7: Wyatt Paul | G7: FC Strait Cajun | H7: 915.739
E8: 7 | F8: Pete Oen | G8: VC GoGo Fling | H8: 915.91
E9: 8 | F9: Ashley Harvey | G9: OE Money In My Socks | H9: 917.051
E10: 9
E11: 10
E12: 11
E13: 12
E14: 13
E15: 14
E16: 15
E17: 16
E18: 17
E19: 18
E20: 19
E21: 20
E22: 23
E23: 24
E24: 25
E25: 26
E26: 27
E27: 28
E28: 29
E29: 30
E30: 31
E31: 32
E32: 33
E33: 34
E34: 35
E35: 36
E36: 37
E37: 38
E38: 39
E39: 40
E40: 41
E41: 42
E42: 43
E43: 44
E44: 45
E45: 46
E46: 47
E47: 48
E48: 49
E49: 50
E50: 51
E51: 52
E52: 53
E53: 54
E54: 55
E55: 56
E56: 57
E57: 58
E58: 59
E59: 60
E60: 61
E61: 62
E62: 63
E63: 64
E64: 65
E65: 66
E66: 67
E67: 68
E68: 69
E69: 70
E70: 71
E71: 72
E72: 73
E73: 74
E74: 75
E75: 76
E76: 77
E77: 78
E78: 79
E79: 80
E80: 81
E81: 82
E82: 83
E83: 84
E84: 85
E85: 86
E86: 87
E87: 88
E88: 89
E89: 90
E90: 91
E91: 92
E92: 93
E93: 94
E94: 95
E95: 96
E96: 97
E97: 98
E98: 99
E99: 100
E100: 101
E101: 102
E102: 103
E103: 104
E104: 105
E105: 106
E106: 107
E107: 108
E108: 109
E109: 110
E110: 111
E111: 112
E112: 113
E113: 114
E114: 115
E115: 116
E116: 117
E117: 118
E118: 119
E119: 120
E120: 121
E121: 122
E122: 123
E123: 124
E124: 125
E125: 126
E126: 127
E127: 128
E128: 129
E129: 130
E130: 131
E131: 132
E132: 133
E133: 134
E134: 135
E135: 136
E136: 137
E137: 138
E138: 139
E139: 140
E140: 141
E141: 142
E142: 143
E143: 144
E144: 145
E145: 146
E146: 147
E147: 148
E148: 149
E149: 150
E150: 151
E151: 152
E152: 153
E153: 154
E154: 155
E155: 156
E156: 157
E157: 158
E158: 159
E159: 160
E160: 161
E161: 162
E162: 163
E163: 164
E164: 165
E165: 166
E166: 167
E167: 168
E168: 169
E169: 170
E170: 171
E171: 172
E172: 173
E173: 174
E174: 175
E175: 176
E176: 177
E177: 178
E178: 179
E179: 180
E180: 181
E181: 182
E182: 183
E183: 184
E184: 185
E185: 186
E186: 187
E187: 188
E188: 189
E189: 190
E190: 191
E191: 192
E192: 193
E193: 194
E194: 195
E195: 196
E196: 197
E197: 198
E198: 199
E199: 200
E200: 201
... 99 more rows

Sheet High Stakes
A1: HS | B1: Der | C1: Age Inct. | D1: BBR | E1: Draw | F1: Rider Name | G1: Horse Name | H1: Time | I1: Placing | J1: Money Earned
E2: 1 | F2: Tyler Rivette | G2: Streakin Flingin Disco | H2: 15.858 | I2: 1st | J2: 440
E3: 2 | F3: Megan McKerchie | G3: Ciroc | H3: 15.882 | I3: 2nd | J3: 264
E4: 3 | F4: Carolina Kelly | G4: Hesa Dashin Dreamer | H4: 16.176 | I4: 3rd | J4: 176
E5: 4 | F5: Tyler Rivette | G5: Flingin Roses | H5: 16.188
E6: 5 | F6: Lainie Whitmire | G6: Bullseye Bullion | H6: 16.222
E7: 6 | F7: Tristan Bowles | G7: Short Okie Lena | H7: 16.487
E8: 7 | F8: Jamie Wilson | G8: KN Luna | H8: 16.54
E9: 8 | F9: Lainie Whitmire | G9: Dash Ta Kill | H9: 20.5
E10: 9 | F10: Chani Graves | G10: Im Little Bit Famous | H10: 915.552
E11: 10 | F11: Pete Oen | G11: VC GoGo Fling | H11: 915.91
E12: 11 | F12: Chani Graves | G12: Shiney Cartel | H12: 916.052
E13: 12
E14: 13
E15: 14
E16: 15
E17: 16
E18: 17
E19: 18
E20: 19
E21: 20
E22: 21
E23: 22
E24: 23
E25: 24
E26: 25
E27: 26
E28: 27
E29: 28
E30: 29
E31: 30
E32: 31
E33: 32
E34: 33
E35: 34
E36: 35
E37: 36
E38: 37
E39: 38
E40: 39
E41: 40
E42: 41
E43: 42
E44: 43
E45: 44
E46: 45
E47: 46
E48: 47
E49: 48
E50: 49
E51: 50
E52: 51
E53: 52
E54: 53
E55: 54
E56: 55
E57: 56
E58: 57
E59: 58
E60: 59
E61: 60
E62: 61
E63: 62
E64: 63
E65: 64
E66: 65
E67: 66
E68: 67
E69: 68
E70: 69
E71: 70
E72: 71
E73: 72
E74: 73
E75: 74
E76: 75
E77: 76
E78: 77
E79: 78
E80: 79
E81: 80
E82: 81
E83: 82
E84: 83
E85: 84
E86: 85
E87: 86
E88: 87
E89: 88
E90: 89
E91: 90
E92: 91
E93: 92
E94: 93
E95: 94
E96: 95
E97: 96
E98: 97
E99: 98
E100: 99
E101: 100
E102: 101
E103: 102
E104: 103
E105: 104
E106: 105
E107: 106
E108: 107
E109: 108
E110: 109
E111: 110
E112: 111
E113: 112
E114: 113
E115: 114
E116: 115
E117: 116
E118: 117
E119: 118
E120: 119
E121: 120
E122: 121
E123: 122
E124: 123
E125: 124
E126: 125
E127: 126
E128: 127
E129: 128
E130: 129
E131: 130
E132: 131
E133: 132
E134: 133
E135: 134
E136: 135
E137: 136
E138: 137
E139: 138
E140: 139
E141: 140
E142: 141
E143: 142
E144: 143
E145: 144
E146: 145
E147: 146
E148: 147
E149: 148
E150: 149
E151: 150
E152: 151
E153: 152
E154: 153
E155: 154
E156: 155
E157: 156
E158: 157
E159: 158
E160: 159
E161: 160
E162: 161
E163: 162
E164: 163
E165: 164
E166: 165
E167: 166
E168: 167
E169: 168
E170: 169
E171: 170
E172: 171
E173: 172
E174: 173
E175: 174
E176: 175
E177: 176
E178: 177
E179: 178
E180: 179
E181: 180
E182: 181
E183: 182
E184: 183
E185: 184
E186: 185
E187: 186
E188: 187
E189: 188
E190: 189
E191: 190
E192: 191
E193: 192
E194: 193
E195: 194
E196: 195
E197: 196
E198: 197
E199: 198
E200: 199
... 101 more rows

Sheet Futurity
A1: Futurity | B1: Der | C1: Age Inct. | D1: BBR | E1: Draw | F1: Rider Name | G1: Horse Name | H1: Time | I1: Placing | J1: Money Earned
E2: 1 | F2: Jamie Wilson | G2: French Cinnamon | H2: 15.838 | I2: 1D 1st | J2: 218
E3: 2 | F3: Kylie Bowles | G3: Slick A Lena | H3: 15.905 | J3: 146
E4: 3 | F4: Jessie Domann | G4: A Dash Of Choclate | H4: 16.107
E5: 4 | F5: Kyra Boling | G5: Shesa Heaven Sent | H5: 16.261
E6: 5 | F6: Billie Ann Harmon | G6: Zero Judgement | H6: 16.262
E7: 6 | F7: Billie Ann Harmon | G7: The Dungaree Moon | H7: 16.49 | I7: 2D 1st | J7: 94
E8: 7 | F8: Jessie Domann | G8: Tres Down The Fame | H8: 16.586 | I8: 2D 2nd | J8: 50
E9: 8 | F9: Pete Oen | G9: Unbroken Belle | H9: 16.592
E10: 9 | F10: Lauren Strough | G10: Drifting For Dineros | H10: 16.689
E11: 10 | F11: Kaylyn Smith | G11: Bet She Can Fly | H11: 16.782
E12: 11 | F12: Kimberly Hulme | G12: Happy Olena Gin | H12: 18.114
E13: 12 | F13: Randi Roberts | G13: Colour Chart | H13: 917.643
E14: 13 | F14: Bianca Dos Santos | G14: Streakinlikaleo | H14: 917.703
E15: 14
E16: 15
E17: 16
E18: 17
E19: 18
E20: 19
E21: 20
E22: 21
E23: 22
E24: 23
E25: 24
E26: 25
E27: 26
E28: 27
E29: 28
E30: 29
E31: 30
E32: 31
E33: 32
E34: 33
E35: 34
E36: 35
E37: 36
E38: 37
E39: 38
E40: 39
E41: 40
E42: 41
E43: 42
E44: 43
E45: 44
E46: 45
E47: 46
E48: 47
E49: 48
E50: 49
E51: 50
E52: 51
E53: 52
E54: 53
E55: 54
E56: 55
E57: 56
E58: 57
E59: 58
E60: 59
E61: 60
E62: 61
E63: 62
E64: 63
E65: 64
E66: 65
E67: 66
E68: 67
E69: 68
E70: 69
E71: 70
E72: 71
E73: 72
E74: 73
E75: 74
E76: 75
E77: 76
E78: 77
E79: 78
E80: 79
E81: 80
E82: 81
E83: 82
E84: 83
E85: 84
E86: 85
E87: 86
E88: 87
E89: 88
E90: 89
E91: 90
E92: 91
E93: 92
E94: 93
E95: 94
E96: 95
E97: 96
E98: 97
E99: 98
E100: 99
E101: 100
E102: 101
E103: 102
E104: 103
E105: 104
E106: 105
E107: 106
E108: 107
E109: 108
E110: 109
E111: 110
E112: 111
E113: 112
E114: 113
E115: 114
E116: 115
E117: 116
E118: 117
E119: 118
E120: 119
E121: 120
E122: 121
E123: 122
E124: 123
E125: 124
E126: 125
E127: 126
E128: 127
E129: 128
E130: 129
E131: 130
E132: 131
E133: 132
E134: 133
E135: 134
E136: 135
E137: 136
E138: 137
E139: 138
E140: 139
E141: 140
E142: 141
E143: 142
E144: 143
E145: 144
E146: 145
E147: 146
E148: 147
E149: 148
E150: 149
E151: 150
E152: 151
E153: 152
E154: 153
E155: 154
E156: 155
E157: 156
E158: 157
E159: 158
E160: 159
E161: 160
E162: 161
E163: 162
E164: 163
E165: 164
E166: 165
E167: 166
E168: 167
E169: 168
E170: 169
E171: 170
E172: 171
E173: 172
E174: 173
E175: 174
E176: 175
E177: 176
E178: 177
E179: 178
E180: 179
E181: 180
E182: 181
E183: 182
E184: 183
E185: 184
E186: 185
E187: 186
E188: 187
E189: 188
E190: 189
E191: 190
E192: 191
E193: 192
E194: 193
E195: 194
E196: 195
E197: 196
E198: 197
E199: 198
E200: 199
... 101 more rows

Sheet 12 & Under (hidden)
A1: Futurity | B1: Der | C1: Age Inct. | D1: R/O | E1: Draw | F1: Rider Name | G1: Horse Name | H1: Time | I1: Final Time | J1: Placing | K1: Money Earned
E33: 32
E34: 33
E35: 34
E36: 35
E37: 36
E38: 37
E39: 38
E40: 39
E41: 40
E42: 41
E43: 42
E44: 43
E45: 44
E46: 45
E47: 46
E48: 47
E49: 48
E50: 49
E51: 50
E52: 51
E53: 52
E54: 53
E55: 54
E56: 55
E57: 56
E58: 57
E59: 58
E60: 59
E61: 60
E62: 61
E63: 62
E64: 63
E65: 64
E66: 65
E67: 66
E68: 67
E69: 68
E70: 69
E71: 70
E72: 71
E73: 72
E74: 73
E75: 74
E76: 75
E77: 76
E78: 77
E79: 78
E80: 79
E81: 80
E82: 81
E83: 82
E84: 83
E85: 84
E86: 85
E87: 86
E88: 87
E89: 88
E90: 89
E91: 90
E92: 91
E93: 92
E94: 93
E95: 94
E96: 95
E97: 96
E98: 97
E99: 98
E100: 99
E101: 100
E102: 101
E103: 102
E104: 103
E105: 104
E106: 105
E107: 106
E108: 107
E109: 108
E110: 109
E111: 110
E112: 111
E113: 112
E114: 113
E115: 114
E116: 115
E117: 116
E118: 117
E119: 118
E120: 119
E121: 120
E122: 121
E123: 122
E124: 123
E125: 124
E126: 125
E127: 126
E128: 127
E129: 128
E130: 129
E131: 130
E132: 131
E133: 132
E134: 133
E135: 134
E136: 135
E137: 136
E138: 137
E139: 138
E140: 139
E141: 140
E142: 141
E143: 142
E144: 143
E145: 144
E146: 145
E147: 146
E148: 147
E149: 148
E150: 149
E151: 150
E152: 151
E153: 152
E154: 153
E155: 154
E156: 155
E157: 156
E158: 157
E159: 158
E160: 159
E161: 160
E162: 161
E163: 162
E164: 163
E165: 164
E166: 165
E167: 166
E168: 167
E169: 168
E170: 169
E171: 170
E172: 171
E173: 172
E174: 173
E175: 174
E176: 175
E177: 176
E178: 177
E179: 178
E180: 179
E181: 180
E182: 181
E183: 182
E184: 183
E185: 184
E186: 185
E187: 186
E188: 187
E189: 188
E190: 189
E191: 190
E192: 191
E193: 192
E194: 193
E195: 194
E196: 195
E197: 196
E198: 197
E199: 198
E200: 199
E201: 200
E202: 201
E203: 202
E204: 203
E205: 204
E206: 205
E207: 206
E208: 207
E209: 208
E210: 209
E211: 210
E212: 211
E213: 212
E214: 213
E215: 214
E216: 215
E217: 216
E218: 217
E219: 218
E220: 219
E221: 220
E222: 221
E223: 222
E224: 223
E225: 224
E226: 225
E227: 226
E228: 227
E229: 228
E230: 229
E231: 230
... 70 more rows

Sheet Future Champs
A1: Future Champs
A2: Draw | B2: Rider Name | C2: Horse Name | D2: Time | E2: Placing | F2: Money Earned
A3: 1 | B3: Lawson Kimball
A4: 2 | B4: Cora Lee Williams
A5: 3 | B5: Kenzie Corey | C5: Buddy
A6: 4 | B6: Lola Parnell
A7: 5 | B7: Sophie Roberts | C7: Rarity
A8: 6
A9: 7 | B9: Wyatt Williams
A10: 8 | B10: Everly Kimball
A11: 9 | B11: Jake Thornton | C11: Henry
A12: 10
A13: 11
A14: 12
A15: 13
A16: 14
A17: 15
A18: 16
A19: 17
A20: 18
A21: 19
A22: 20
A23: 21
A24: 22
A25: 23

Sheet BFA 2D Payout (hidden)
A1: BFA 2D Payout
A2: Entry Fee | B2: # Entries | C2: % Payback | D2: Added $ | E2: Total Payout | F2: Each Go
A3: 25 | B3: 19 | C3: 0.8 | D3: 200 | E3: =(A3*$C$3)*B3+D3 -> 580 | F3: 0.3
F4: =$E$3*$F$3 -> 174
A5: $5,000-7,500 Pays 5 Places 4 to 1D 1 to 2D
A6: Placings | B6: 1D | D6: 2D
A7: 1st | B7: =($F$4*$C$7) -> 57.42 | C7: 0.33 | D7: =$F$4*$E$7 -> 12.18 | E7: 0.07
A8: 2nd | B8: =$F$4*$C$8 -> 46.98 | C8: 0.27
A9: 3rd | B9: =$F$4*$C$9 -> 34.8 | C9: 0.2
A10: 4th | B10: =$F$4*$C$10 -> 22.62 | C10: 0.13
A11: Totals | B11: =SUM(B7:B10) -> 161.82 | D11: =SUM(D7:D10) -> 12.18 | E11: =(C7+C8+C9+C10+E7+E8) -> 1
A12: =B11+D11 -> 174
A13: $7,501 - 10,000 Pays 6 Places 4 to 1D, 2 to 2D
A14: Placings | B14: 1D | D14: 2D
A15: 1st | B15: =$F$4*$C$15 -> 50.46 | C15: 0.29 | D15: =$F$4*$E$15 -> 15.66 | E15: 0.09
A16: 2nd | B16: =+$F$4*$C$16 -> 41.76 | C16: 0.24 | D16: =F4*E16 -> 8.7 | E16: 0.05
A17: 3rd | B17: =$F$4*$C$17 -> 33.06 | C17: 0.19
A18: 4th | B18: =$F$4*$C$18 -> 24.36 | C18: 0.14
A19: Totals | B19: =SUM(B15:B18) -> 149.64 | D19: =D16+D15 -> 24.36 | E19: =SUM(C15+C16+C17+C18+E15+E16) -> 1
A20: =D19+B19 -> 174
A21: $10,001 - $15,000 Payes 8 Places 5 to 1D, 3 to 2D
A22: Placings | B22: 1D | D22: 2D
A23: 1st | B23: =F4*C23 -> 41.76 | C23: 0.24 | D23: =F4*E23 -> 12.18 | E23: 0.07
A24: 2nd | B24: =F4*C24 -> 34.8 | C24: 0.2 | D24: =F4*E24 -> 8.7 | E24: 0.05
A25: 3rd | B25: =F4*C25 -> 29.58 | C25: 0.17 | D25: =F4*E25 -> 6.96 | E25: 0.04
A26: 4th | B26: =F4*C26 -> 22.62 | C26: 0.13
A27: 5th | B27: =F4*C27 -> 17.4 | C27: 0.1
A28: Totals | B28: =SUM(B23:B27) -> 146.16 | D28: =SUM(D23:D27) -> 27.84 | E28: =C23+C24+C25+C26+C27+E23+E24+E25 -> 1
A29: =B28+D28 -> 174
A30: $15,001 - $25,000 Payes 11 Places 7 to 1D, 4 to 2D
A31: Placings | B31: 1D | D31: 2D
A32: 1st | B32: =$F$4*C32 -> 36.54 | C32: 0.21 | D32: =$F$4*E32 -> 8.7 | E32: 0.05
A33: 2nd | B33: =$F$4*C33 -> 31.32 | C33: 0.18 | D33: =$F$4*E33 -> 6.96 | E33: 0.04
A34: 3rd | B34: 26.1 | C34: 0.15 | D34: 5.22 | E34: 0.03
A35: 4th | B35: 19.14 | C35: 0.11 | D35: 3.48 | E35: 0.02
A36: 5th | B36: 13.92 | C36: 0.08
A37: 6th | B37: 12.18 | C37: 0.07
A38: 7th | B38: 10.44 | C38: 0.06
A39: Totals | B39: =SUM(B32:B38) -> 149.64 | D39: =SUM(D32:D38) -> 24.36 | E39: =C32+C33+C34+C35+C36+C37+C38+E32+E33+E34+E35 -> 1
A40: =SUM(B39+D39) -> 174
A41: $25,001 - $35,000 Payes 12 Places 8 to 1D, 4 to 2D
A42: Placings | B42: 1D | D42: 2D
A43: 1st | B43: =$F$4*C43 -> 33.06 | C43: 0.19 | D43: =$F$4*E43 -> 8.7 | E43: 0.05
A44: 2nd | B44: =$F$4*C44 -> 26.1 | C44: 0.15 | D44: =$F$4*E44 -> 6.96 | E44: 0.04
A45: 3rd | B45: 20.88 | C45: 0.12 | D45: 5.22 | E45: 0.03
A46: 4th | B46: 17.4 | C46: 0.1 | D46: 3.48 | E46: 0.02
A47: 5th | B47: 15.66 | C47: 0.09
A48: 6th | B48: 13.92 | C48: 0.08
A49: 7th | B49: 12.18 | C49: 0.07
A50: 8th | B50: 10.44 | C50: 0.06
A51: Totals | B51: =SUM(B43:B50) -> 149.64 | D51: =SUM(D43:D46) -> 24.36 | E51: =C43+C44+C45+C46+C47+C48+C49+C50+E43+E44+E45+E46 -> 1
A52: =D51+B51 -> 174

Sheet 2D Payout
A1: 2D Payout
A2: Entry Fee | B2: # Entries | C2: % Payback | D2: Added $ | E2: Total Payout
A3: 50 | B3: 13 | C3: 0.8 | E3: =(A3*$C$3)*B3+D3 -> 520
A5: % in each D | B5: 0.7 | C5: 0.3 | D5: Total % = | E5: =SUM(B5:C5) -> 1
B6: 1D | C6: 2D
B7: =(($A$3*$B$3*$C$3*$B$5)+($D$3*$B$5)) -> 364 | C7: =(($A$3*$B$3*$C$3*$C$5)+($D$3*$C$5)) -> 156
A8: Totals | B8: =SUM(B7) -> 364 | C8: =SUM(C7) -> 156 | D8: =SUM(B8:C8) -> 520
A10: For 1-7 riders 1 place
A11: Placings | B11: 1D | C11: 2D
A12: 1st | B12: =$B$7*$E$12 -> 364 | C12: =$C$7*$E$5 -> 156 | D12: è | E12: 1
A13: Totals | B13: =SUM(B12:B12) -> 364 | C13: =SUM(C12:C12) -> 156 | D13: =SUM(B13:C13) -> 520 | E13: =SUM(E12) -> 1
A15: For 8-11 riders 2 places
A16: Placings | B16: 1D | C16: 2D
A17: 1st | B17: =$B$7*$E$17 -> 218.4 | C17: =$C$7*$E$17 -> 93.6 | D17: è | E17: 0.6
A18: 2nd | B18: =$B$7*$E$18 -> 145.6 | C18: 50 | D18: è | E18: 0.4
A19: Totals | B19: =SUM(B17:B18) -> 364 | C19: =SUM(C17:C18) -> 143.6 | D19: =SUM(B19:C19) -> 507.6 | E19: =SUM(E17:E18) -> 1
A21: For 12-15 riders 3 places
A22: Placings | B22: 1D | C22: 2D
A23: 1st | B23: =$B$7*$E$23 -> 182 | C23: =$C$7*$E$23 -> 78 | D23: è | E23: 0.5
A24: 2nd | B24: =$B$7*$E$24 -> 109.2 | C24: =$C$7*$E$24 -> 46.8 | D24: è | E24: 0.3
A25: 3rd | B25: =$B$7*$E$25 -> 72.8 | C25: =$C$7*$E$25 -> 31.2 | D25: è | E25: 0.2
A26: Totals | B26: =SUM(B23:B25) -> 364 | C26: =SUM(C23:C25) -> 156 | D26: =SUM(B26:C26) -> 520 | E26: =SUM(E23:E25) -> 1
A28: For 16-19 riders 4 places
A29: Placings | B29: 1D | C29: 2D
A30: 1st | B30: =$B$7*$E$30 -> 145.6 | C30: =$C$7*$E$30 -> 62.4 | D30: è | E30: 0.4
A31: 2nd | B31: =$B$7*$E$31 -> 109.2 | C31: =$C$7*$E$31 -> 46.8 | D31: è | E31: 0.3
A32: 3rd | B32: =$B$7*$E$32 -> 72.8 | C32: =$C$7*$E$32 -> 31.2 | D32: è | E32: 0.2
A33: 4th | B33: =$B$7*$E$33 -> 36.4 | C33: =$C$7*$E$33 -> 15.6 | D33: è | E33: 0.1
A34: Totals | B34: =SUM(B30:B33) -> 364 | C34: =SUM(C30:C33) -> 156 | D34: =SUM(B34:C34) -> 520 | E34: =SUM(E30:E33) -> 1
A36: For 20-23 riders 5 places
A37: Placings | B37: 1D | C37: 2D
A38: 1st | B38: =$B$7*$E$38 -> 109.2 | C38: =$C$7*$E$38 -> 46.8 | D38: è | E38: 0.3
A39: 2nd | B39: =$B$7*$E$39 -> 91 | C39: =$C$7*$E$39 -> 39 | D39: è | E39: 0.25
A40: 3rd | B40: =$B$7*$E$40 -> 72.8 | C40: =$C$7*$E$40 -> 31.2 | D40: è | E40: 0.2
A41: 4th | B41: =$B$7*$E$41 -> 54.6 | C41: =$C$7*$E$41 -> 23.4 | D41: è | E41: 0.15
A42: 5th | B42: =$B$7*$E$42 -> 36.4 | C42: =$C$7*$E$42 -> 15.6 | D42: è | E42: 0.1
A43: Totals | B43: =SUM(B38:B42) -> 364 | C43: =SUM(C38:C42) -> 156 | D43: =SUM(B43:C43) -> 520 | E43: =SUM(E38:E42) -> 1
A45: For 24-27 riders 6 places
A46: Placings | B46: 1D | C46: 2D
A47: 1st | B47: =$B$7*$E$47 -> 91 | C47: =$C$7*$E$47 -> 39 | D47: è | E47: 0.25
A48: 2nd | B48: =$B$7*$E$48 -> 72.8 | C48: =$C$7*$E$48 -> 31.2 | D48: è | E48: 0.2
A49: 3rd | B49: =$B$7*$E$49 -> 65.52 | C49: =$C$7*$E$49 -> 28.08 | D49: è | E49: 0.18
A50: 4th | B50: =$B$7*$E$50 -> 54.6 | C50: =$C$7*$E$50 -> 23.4 | D50: è | E50: 0.15
A51: 5th | B51: =$B$7*$E$51 -> 43.68 | C51: =$C$7*$E$51 -> 18.72 | D51: è | E51: 0.12
A52: 6th | B52: =$B$7*$E$52 -> 36.4 | C52: =$C$7*$E$52 -> 15.6 | D52: è | E52: 0.1
A53: Totals | B53: =SUM(B47:B52) -> 364 | C53: =SUM(C47:C52) -> 156 | D53: =SUM(B53:C53) -> 520 | E53: =SUM(E47:E52) -> 1
A55: For 28-31 riders 7 places
A56: Placings | B56: 1D | C56: 2D
A57: 1st | B57: =$B$7*$E$57 -> 80.08 | C57: =$C$7*$E$57 -> 34.32 | D57: è | E57: 0.22
A58: 2nd | B58: =$B$7*$E$58 -> 65.52 | C58: =$C$7*$E$58 -> 28.08 | D58: è | E58: 0.18
A59: 3rd | B59: =$B$7*$E$59 -> 58.24 | C59: =$C$7*$E$59 -> 24.96 | D59: è | E59: 0.16
A60: 4th | B60: =$B$7*$E$60 -> 50.96 | C60: =$C$7*$E$60 -> 21.84 | D60: è | E60: 0.14
A61: 5th | B61: =$B$7*$E$61 -> 43.68 | C61: =$C$7*$E$61 -> 18.72 | D61: è | E61: 0.12
A62: 6th | B62: =$B$7*$E$62 -> 36.4 | C62: =$C$7*$E$62 -> 15.6 | D62: è | E62: 0.1
A63: 7th | B63: =$B$7*$E$63 -> 29.12 | C63: =$C$7*$E$63 -> 12.48 | D63: è | E63: 0.08
A64: Totals | B64: =SUM(B57:B63) -> 364 | C64: =SUM(C57:C63) -> 156 | D64: =SUM(B64:C64) -> 520 | E64: =SUM(E57:E63) -> 1
A66: For 32 or more riders 8 places
A67: Placings | B67: 1D | C67: 2D
A68: 1st | B68: =$B$7*$E$68 -> 83.72 | C68: =$C$7*$E$68 -> 35.88 | D68: è | E68: 0.23
A69: 2nd | B69: =$B$7*$E$69 -> 72.8 | C69: =$C$7*$E$69 -> 31.2 | D69: è | E69: 0.2
A70: 3rd | B70: =$B$7*$E$70 -> 61.88 | C70: =$C$7*$E$70 -> 26.52 | D70: è | E70: 0.17
A71: 4th | B71: =$B$7*$E$71 -> 50.96 | C71: =$C$7*$E$71 -> 21.84 | D71: è | E71: 0.14
A72: 5th | B72: =$B$7*$E$72 -> 40.04 | C72: =$C$7*$E$72 -> 17.16 | D72: è | E72: 0.11
A73: 6th | B73: =$B$7*$E$73 -> 29.12 | C73: =$C$7*$E$73 -> 12.48 | D73: è | E73: 0.08
A74: 7th | B74: =$B$7*$E$74 -> 18.2 | C74: =$C$7*$E$74 -> 7.8 | D74: è | E74: 0.05
A75: 8th | B75: =$B$7*$E$75 -> 7.28 | C75: =$C$7*$E$75 -> 3.12 | D75: è | E75: 0.02
A76: Totals | B76: =SUM(B68:B75) -> 364 | C76: =SUM(C68:C75) -> 156 | D76: =SUM(B76:C76) -> 520 | E76: =SUM(E68:E75) -> 1

Sheet 3D Payout (hidden)
A1: 3D Payout
A2: Entry Fee | B2: # Entries | C2: % Payback | D2: $ From Entry | E2: Added $ | F2: Total Payout
A3: 10 | B3: 3 | C3: 0.8 | D3: =$A$3*$C$3*$B$3 -> 24 | F3: =$D$3+$E$3 -> 24
A5: % in each D | B5: 0.5 | C5: 0.3 | D5: 0.2 | E5: Total % = | F5: =SUM(B5:D5) -> 1
B6: 1D | C6: 2D | D6: 3D
B7: =(($A$3*$B$3*$C$3*$B$5)+($E$3*$B$5)) -> 12 | C7: =(($A$3*$B$3*$C$3*$C$5)+($E$3*$C$5)) -> 7.2 | D7: =(($A$3*$B$3*$C$3*$D$5)+($E$3*$D$5)) -> 4.8
A8: Totals | B8: =SUM(B7) -> 12 | C8: =SUM(C7) -> 7.2 | D8: 4.8 | E8: =SUM(B8:D8) -> 24
A10: For 1-10 riders 1 place
A11: Placings | B11: 1D | C11: 2D | D11: 3D
A12: 1st | B12: =$B$7*$F$12 -> 12 | C12: =$C$7*$F$12 -> 7.2 | D12: =$D$7*$F$12 -> 4.8 | E12: è | F12: 1
A13: Totals | B13: =SUM(B12:B12) -> 12 | C13: =SUM(C12:C12) -> 7.2 | D13: =SUM(D12:D12) -> 4.8 | E13: =SUM(B13:D13) -> 24 | F13: =SUM(F12) -> 1
A15: For 11-15 riders 2 places
A16: Placings | B16: 1D | C16: 2D | D16: 3D
A17: 1st | B17: =$B$7*$F$17 -> 7.2 | C17: =$C$7*$F$17 -> 4.32 | D17: =$D$7*$F$17 -> 2.88 | E17: è | F17: 0.6
A18: 2nd | B18: =$B$7*$F$18 -> 4.8 | C18: =$C$7*$F$18 -> 2.88 | D18: =$D$7*$F$18 -> 1.92 | E18: è | F18: 0.4
A19: Totals | B19: =SUM(B17:B18) -> 12 | C19: =SUM(C17:C18) -> 7.2 | D19: =SUM(D17:D18) -> 4.8 | E19: =SUM(B19:D19) -> 24 | F19: =SUM(F17:F18) -> 1
A21: For 16-30 riders 3 places
A22: Placings | B22: 1D | C22: 2D | D22: 3D
A23: 1st | B23: =$B$7*$F$23 -> 6 | C23: =$C$7*$F$23 -> 3.6 | D23: =$D$7*$F$23 -> 2.4 | E23: è | F23: 0.5
A24: 2nd | B24: =$B$7*$F$24 -> 3.6 | C24: =$C$7*$F$24 -> 2.16 | D24: =$D$7*$F$24 -> 1.44 | E24: è | F24: 0.3
A25: 3rd | B25: =$B$7*$F$25 -> 2.4 | C25: =$C$7*$F$25 -> 1.44 | D25: =$D$7*$F$25 -> 0.96 | E25: è | F25: 0.2
A26: Totals | B26: =SUM(B23:B25) -> 12 | C26: =SUM(C23:C25) -> 7.2 | D26: =SUM(D22:D25) -> 4.8 | E26: =SUM(B26:D26) -> 24 | F26: =SUM(F23:F25) -> 1
A28: For 31-60 riders 4 places
A29: Placings | B29: 1D | C29: 2D | D29: 3D
A30: 1st | B30: =$B$7*$F$30 -> 5.04 | C30: =$C$7*$F$30 -> 3.024 | D30: =$D$7*$F$30 -> 2.016 | E30: è | F30: 0.42
A31: 2nd | B31: =$B$7*$F$31 -> 3.48 | C31: =$C$7*$F$31 -> 2.088 | D31: =$D$7*$F$31 -> 1.392 | E31: è | F31: 0.29
A32: 3rd | B32: =$B$7*$F$32 -> 2.28 | C32: =$C$7*$F$32 -> 1.368 | D32: =$D$7*$F$32 -> 0.912 | E32: è | F32: 0.19
A33: 4th | B33: =$B$7*$F$33 -> 1.2 | C33: =$C$7*$F$33 -> 0.72 | D33: =$D$7*$F$33 -> 0.48 | E33: è | F33: 0.1
A34: Totals | B34: =SUM(B30:B33) -> 12 | C34: =SUM(C30:C33) -> 7.2 | D34: =SUM(D30:D33) -> 4.8 | E34: =SUM(B34:D34) -> 24 | F34: =SUM(F30:F33) -> 1
A36: For 61-90 riders 5 places
A37: Placings | B37: 1D | C37: 2D | D37: 3D
A38: 1st | B38: =$B$7*$F$38 -> 4.56 | C38: =$C$7*$F$38 -> 2.736 | D38: =$D$7*$F$38 -> 1.824 | E38: è | F38: 0.38
A39: 2nd | B39: =$B$7*$F$39 -> 3.36 | C39: =$C$7*$F$39 -> 2.016 | D39: =$D$7*$F$39 -> 1.344 | E39: è | F39: 0.28
A40: 3rd | B40: =$B$7*$F$40 -> 2.16 | C40: =$C$7*$F$40 -> 1.296 | D40: =$D$7*$F$40 -> 0.864 | E40: è | F40: 0.18
A41: 4th | B41: =$B$7*$F$41 -> 1.2 | C41: =$C$7*$F$41 -> 0.72 | D41: =$D$7*$F$41 -> 0.48 | E41: è | F41: 0.1
A42: 5th | B42: =$B$7*$F$42 -> 0.72 | C42: =$C$7*$F$42 -> 0.432 | D42: =$D$7*$F$42 -> 0.288 | E42: è | F42: 0.06
A43: Totals | B43: =SUM(B38:B42) -> 12 | C43: =SUM(C38:C42) -> 7.2 | D43: =SUM(D38:D42) -> 4.8 | E43: =SUM(B43:D43) -> 24 | F43: =SUM(F38:F42) -> 1
A45: For 91-120 riders 6 places
A46: Placings | B46: 1D | C46: 2D | D46: 3D
A47: 1st | B47: =$B$7*$F$47 -> 4.32 | C47: =$C$7*$F$47 -> 2.592 | D47: =$D$7*$F$47 -> 1.728 | E47: è | F47: 0.36
A48: 2nd | B48: =$B$7*$F$48 -> 3.12 | C48: =$C$7*$F$48 -> 1.872 | D48: =$D$7*$F$48 -> 1.248 | E48: è | F48: 0.26
A49: 3rd | B49: =$B$7*$F$49 -> 1.92 | C49: =$C$7*$F$49 -> 1.152 | D49: =$D$7*$F$49 -> 0.768 | E49: è | F49: 0.16
A50: 4th | B50: =$B$7*$F$50 -> 1.2 | C50: =$C$7*$F$50 -> 0.72 | D50: =$D$7*$F$50 -> 0.48 | E50: è | F50: 0.1
A51: 5th | B51: =$B$7*$F$51 -> 0.84 | C51: =$C$7*$F$51 -> 0.504 | D51: =$D$7*$F$51 -> 0.336 | E51: è | F51: 0.07
A52: 6th | B52: =$B$7*$F$52 -> 0.6 | C52: =$C$7*$F$52 -> 0.36 | D52: =$D$7*$F$52 -> 0.24 | E52: è | F52: 0.05
A53: Totals | B53: =SUM(B47:B52) -> 12 | C53: =SUM(C47:C52) -> 7.2 | D53: =SUM(D47:D52) -> 4.8 | E53: =SUM(B53:D53) -> 24 | F53: =SUM(F47:F52) -> 1
A55: For 121-200 riders 7 places
A56: Placings | B56: 1D | C56: 2D | D56: 3D
A57: 1st | B57: =$B$7*$F$57 -> 3.12 | C57: =$C$7*$F$57 -> 1.872 | D57: =$D$7*$F$57 -> 1.248 | E57: è | F57: 0.26
A58: 2nd | B58: =$B$7*$F$58 -> 2.4 | C58: =$C$7*$F$58 -> 1.44 | D58: =$D$7*$F$58 -> 0.96 | E58: è | F58: 0.2
A59: 3rd | B59: =$B$7*$F$59 -> 1.8 | C59: =$C$7*$F$59 -> 1.08 | D59: =$D$7*$F$59 -> 0.72 | E59: è | F59: 0.15
A60: 4th | B60: =$B$7*$F$60 -> 1.44 | C60: =$C$7*$F$60 -> 0.864 | D60: =$D$7*$F$60 -> 0.576 | E60: è | F60: 0.12
A61: 5th | B61: =$B$7*$F$61 -> 1.2 | C61: =$C$7*$F$61 -> 0.72 | D61: =$D$7*$F$61 -> 0.48 | E61: è | F61: 0.1
A62: 6th | B62: =$B$7*$F$62 -> 1.08 | C62: =$C$7*$F$62 -> 0.648 | D62: =$D$7*$F$62 -> 0.432 | E62: è | F62: 0.09
A63: 7th | B63: =$B$7*$F$63 -> 0.96 | C63: =$C$7*$F$63 -> 0.576 | D63: =$D$7*$F$63 -> 0.384 | E63: è | F63: 0.08
A64: Totals | B64: =SUM(B57:B63) -> 12 | C64: =SUM(C57:C63) -> 7.2 | D64: =SUM(D57:D63) -> 4.8 | E64: =SUM(B64:D64) -> 24 | F64: =SUM(F57:F63) -> 1
A66: For 201 or more riders 8 places
A67: Placings | B67: 1D | C67: 2D | D67: 3D
A68: 1st | B68: =$B$7*0.24 -> 2.88 | C68: =$C$7*0.24 -> 1.728 | D68: =$D$7*0.24 -> 1.152 | E68: è | F68: 0.24
A69: 2nd | B69: =$B$7*0.18 -> 2.16 | C69: =$C$7*0.18 -> 1.296 | D69: =$D$7*0.18 -> 0.864 | E69: è | F69: 0.18
A70: 3rd | B70: =$B$7*0.15 -> 1.8 | C70: =$C$7*0.15 -> 1.08 | D70: =$D$7*0.15 -> 0.72 | E70: è | F70: 0.15
A71: 4th | B71: =$B$7*0.12 -> 1.44 | C71: =$C$7*0.12 -> 0.864 | D71: =$D$7*0.12 -> 0.576 | E71: è | F71: 0.12
A72: 5th | B72: =$B$7*0.1 -> 1.2 | C72: =$C$7*0.1 -> 0.72 | D72: =$D$7*0.1 -> 0.48 | E72: è | F72: 0.1
A73: 6th | B73: =$B$7*0.08 -> 0.96 | C73: =$C$7*0.08 -> 0.576 | D73: =$D$7*0.08 -> 0.384 | E73: è | F73: 0.08
A74: 7th | B74: =$B$7*0.07 -> 0.84 | C74: =$C$7*0.07 -> 0.504 | D74: =$D$7*0.07 -> 0.336 | E74: è | F74: 0.07
A75: 8th | B75: =$B$7*0.06 -> 0.72 | C75: =$C$7*0.06 -> 0.432 | D75: =$D$7*0.06 -> 0.288 | E75: è | F75: 0.06
A76: Totals | B76: =SUM(B68:B75) -> 12 | C76: =SUM(C68:C75) -> 7.2 | D76: =SUM(D68:D75) -> 4.8 | E76: =SUM(B76:D76) -> 24 | F76: =SUM(F68:F75) -> 1

Sheet 4D Payout BBR (hidden)
A1: 4D Payout BBR
A2: Entry Fee | B2: # Entries | C2: % Payback | D2: $ From Entry | E2: Added $ | F2: Total Payout
A3: 40 | B3: 200 | C3: 0.8 | D3: =$A$3*$C$3*$B$3 -> 6400 | E3: 1100 | F3: =($A$3*$C$3)*$B$3+$E$3 -> 7500
A5: % in each D | B5: 0.35 | C5: 0.3 | D5: 0.2 | E5: 0.15 | F5: Total % Payout | G5: =SUM(B5:E5) -> 1
B6: 1D | C6: 2D | D6: 3D | E6: 4D
B7: =(($A$3*$B$3*$C$3*0.35)+($E$3/4)) -> 2515 | C7: =(($A$3*$B$3*$C$3*0.3)+($E$3/4)) -> 2195 | D7: =(($A$3*$B$3*$C$3*0.2)+($E$3/4)) -> 1555 | E7: =(($A$3*$B$3*$C$3*0.15)+($E$3/4)) -> 1235
A8: Totals | B8: =SUM(B7) -> 2515 | C8: =SUM(C7) -> 2195 | D8: 1555 | E8: 1235 | F8: =SUM(B8:E8) -> 7500
A10: For 1-16 riders 1 place
A11: Placings | B11: 1D | C11: 2D | D11: 3D | E11: 4D
A12: 1st | B12: =$B$7*$G$12 -> 2515 | C12: =$C$7*$G$12 -> 2195 | D12: =$D$7*$G$12 -> 1555 | E12: =$E$7*$G$12 -> 1235 | F12: è | G12: 1
A13: Totals | B13: =SUM(B12:B12) -> 2515 | C13: =SUM(C12:C12) -> 2195 | D13: =SUM(D12:D12) -> 1555 | E13: =SUM(E12:E12) -> 1235 | F13: =SUM(B13:E13) -> 7500 | G13: =SUM(G12) -> 1
A15: For 17-33 riders 2 places
A16: Placings | B16: 1D | C16: 2D | D16: 3D | E16: 4D
A17: 1st | B17: =$B$7*$G$17 -> 1509 | C17: =$C$7*$G$17 -> 1317 | D17: =$D$7*$G$17 -> 933 | E17: =$E$7*$G$17 -> 741 | F17: è | G17: 0.6
A18: 2nd | B18: =$B$7*$G$18 -> 1006 | C18: =$C$7*$G$18 -> 878 | D18: =$D$7*$G$18 -> 622 | E18: =$E$7*$G$18 -> 494 | F18: è | G18: 0.4
A19: Totals | B19: =SUM(B17:B18) -> 2515 | C19: =SUM(C17:C18) -> 2195 | D19: =SUM(D17:D18) -> 1555 | E19: =SUM(E17:E18) -> 1235 | F19: =SUM(B19:E19) -> 7500 | G19: =SUM(G17:G18) -> 1
A21: For 34-66 riders 3 places
A22: Placings | B22: 1D | C22: 2D | D22: 3D | E22: 4D
A23: 1st | B23: =$B$7*$G$23 -> 1257.5 | C23: =$C$7*$G$23 -> 1097.5 | D23: =$D$7*$G$23 -> 777.5 | E23: =$E$7*$G$23 -> 617.5 | F23: è | G23: 0.5
A24: 2nd | B24: =$B$7*$G$24 -> 754.5 | C24: =$C$7*$G$24 -> 658.5 | D24: =$D$7*$G$24 -> 466.5 | E24: =$E$7*$G$24 -> 370.5 | F24: è | G24: 0.3
A25: 3rd | B25: =$B$7*$G$25 -> 503 | C25: =$C$7*$G$25 -> 439 | D25: =$D$7*$G$25 -> 311 | E25: =$E$7*$G$25 -> 247 | F25: è | G25: 0.2
A26: Totals | B26: =SUM(B23:B25) -> 2515 | C26: =SUM(C23:C25) -> 2195 | D26: =SUM(D23:D25) -> 1555 | E26: =SUM(E23:E25) -> 1235 | F26: =SUM(B26:E26) -> 7500 | G26: =SUM(G23:G25) -> 1
A28: For 97-95 riders 4 places
A29: Placings | B29: 1D | C29: 2D | D29: 3D | E29: 4D
A30: 1st | B30: =$B$7*$G$30 -> 1006 | C30: =$C$7*$G$30 -> 878 | D30: =$D$7*$G$30 -> 622 | E30: =$E$7*$G$30 -> 494 | F30: è | G30: 0.4
A31: 2nd | B31: =$B$7*$G$31 -> 754.5 | C31: =$C$7*$G$31 -> 658.5 | D31: =$D$7*$G$31 -> 466.5 | E31: =$E$7*$G$31 -> 370.5 | F31: è | G31: 0.3
A32: 3rd | B32: =$B$7*$G$32 -> 503 | C32: =$C$7*$G$32 -> 439 | D32: =$D$7*$G$32 -> 311 | E32: =$E$7*$G$32 -> 247 | F32: è | G32: 0.2
A33: 4th | B33: =$B$7*$G$33 -> 251.5 | C33: =$C$7*$G$33 -> 219.5 | D33: =$D$7*$G$33 -> 155.5 | E33: =$E$7*$G$33 -> 123.5 | F33: è | G33: 0.1
A34: Totals | B34: =SUM(B30:B33) -> 2515 | C34: =SUM(C30:C33) -> 2195 | D34: =SUM(D30:D33) -> 1555 | E34: =SUM(E30:E33) -> 1235 | F34: =SUM(B34:E34) -> 7500 | G34: =SUM(G30:G33) -> 1
A36: For 96-133 riders 5 places
A37: Placings | B37: 1D | C37: 2D | D37: 3D | E37: 4D
A38: 1st | B38: =$B$7*$G$38 -> 829.95 | C38: =$C$7*$G$38 -> 724.35 | D38: =$D$7*G38 -> 513.15 | E38: =$E$7*$G$38 -> 407.55 | F38: è | G38: 0.33
A39: 2nd | B39: =$B$7*$G$39 -> 679.05 | C39: =$C$7*$G$39 -> 592.65 | D39: =$D$7*$G$39 -> 419.85 | E39: =$E$7*$G$39 -> 333.45 | F39: è | G39: 0.27
A40: 3rd | B40: =$B$7*$G$40 -> 503 | C40: =$C$7*$G$40 -> 439 | D40: =$D$7*$G$40 -> 311 | E40: =$E$7*$G$40 -> 247 | F40: è | G40: 0.2
A41: 4th | B41: =$B$7*$G$41 -> 326.95 | C41: =$C$7*$G$41 -> 285.35 | D41: =$D$7*$G$41 -> 202.15 | E41: =$E$7*$G$41 -> 160.55 | F41: è | G41: 0.13
A42: 5th | B42: =$B$7*$G$42 -> 176.05 | C42: =$C$7*$G$42 -> 153.65 | D42: =$D$7*$G$42 -> 108.85 | E42: =$E$7*$G$42 -> 86.45 | F42: è | G42: 0.07
A43: Totals | B43: =SUM(B38:B42) -> 2515 | C43: =SUM(C38:C42) -> 2195 | D43: =SUM(D38:D42) -> 1555 | E43: =SUM(E38:E42) -> 1235 | F43: =SUM(B43:E43) -> 7500 | G43: =SUM(G38:G42) -> 1
A45: For 134-166 riders 6 places
A46: Placings | B46: 1D | C46: 2D | D46: 3D | E46: 4D
A47: 1st | B47: =$B$7*$G$47 -> 729.35 | C47: =$C$7*$G$47 -> 636.55 | D47: =$D$7*$G$47 -> 450.95 | E47: =$E$7*$G$47 -> 358.15 | F47: è | G47: 0.29
A48: 2nd | B48: =$B$7*$G$48 -> 603.6 | C48: =$C$7*$G$48 -> 526.8 | D48: =$D$7*$G$48 -> 373.2 | E48: =$E$7*$G$48 -> 296.4 | F48: è | G48: 0.24
A49: 3rd | B49: =$B$7*$G$49 -> 477.85 | C49: =$C$7*$G$49 -> 417.05 | D49: =$D$7*$G$49 -> 295.45 | E49: =$E$7*$G$49 -> 234.65 | F49: è | G49: 0.19
A50: 4th | B50: =$B$7*$G$50 -> 352.1 | C50: =$C$7*$G$50 -> 307.3 | D50: =$D$7*$G$50 -> 217.7 | E50: =$E$7*$G$50 -> 172.9 | F50: è | G50: 0.14
A51: 5th | B51: =$B$7*$G$51 -> 226.35 | C51: =$C$7*$G$51 -> 197.55 | D51: =$D$7*$G$51 -> 139.95 | E51: =$E$7*$G$51 -> 111.15 | F51: è | G51: 0.09
A52: 6th | B52: =$B$7*$G$52 -> 125.75 | C52: =$C$7*$G$52 -> 109.75 | D52: =$D$7*$G$52 -> 77.75 | E52: =$E$7*$G$52 -> 61.75 | F52: è | G52: 0.05
A53: Totals | B53: =SUM(B47:B52) -> 2515 | C53: =SUM(C47:C52) -> 2195 | D53: =SUM(D47:D52) -> 1555 | E53: =SUM(E47:E52) -> 1235 | F53: =SUM(B53:E53) -> 7500 | G53: =SUM(G47:G52) -> 1
A55: For 167-222 riders 8 places
A56: Placings | B56: 1D | C56: 2D | D56: 3D | E56: 4D
A57: 1st | B57: =$B$7*$G$57 -> 603.6 | C57: =$C$7*$G$57 -> 526.8 | D57: =$D$7*$G$57 -> 373.2 | E57: =$E$7*$G$57 -> 296.4 | F57: è | G57: 0.24
A58: 2nd | B58: =$B$7*$G$58 -> 503 | C58: =$C$7*$G$58 -> 439 | D58: =$D$7*$G$58 -> 311 | E58: =$E$7*$G$58 -> 247 | F58: è | G58: 0.2
A59: 3rd | B59: =$B$7*$G$59 -> 427.55 | C59: =$C$7*$G$59 -> 373.15 | D59: =$D$7*$G$59 -> 264.35 | E59: =$E$7*$G$59 -> 209.95 | F59: è | G59: 0.17
A60: 4th | B60: =$B$7*$G$60 -> 326.95 | C60: =$C$7*$G$60 -> 285.35 | D60: =$D$7*$G$60 -> 202.15 | E60: =$E$7*$G$60 -> 160.55 | F60: è | G60: 0.13
A61: 5th | B61: =$B$7*$G$61 -> 251.5 | C61: =$C$7*$G$61 -> 219.5 | D61: =$D$7*$G$61 -> 155.5 | E61: =$E$7*$G$61 -> 123.5 | F61: è | G61: 0.1
A62: 6th | B62: =$B$7*$G$62 -> 176.05 | C62: =$C$7*$G$62 -> 153.65 | D62: =$D$7*$G$62 -> 108.85 | E62: =$E$7*$G$62 -> 86.45 | F62: è | G62: 0.07
A63: 7th | B63: =$B$7*$G$63 -> 125.75 | C63: =$C$7*$G$63 -> 109.75 | D63: =$D$7*$G$63 -> 77.75 | E63: =$E$7*$G$63 -> 61.75 | F63: è | G63: 0.05
A64: 8th | B64: =$B$7*$G$64 -> 100.6 | C64: =$C$7*$G$64 -> 87.8 | D64: =$D$7*$G$64 -> 62.2 | E64: =$E$7*$G$64 -> 49.4 | F64: è | G64: 0.04
A65: Totals | B65: =SUM(B57:B64) -> 2515 | C65: =SUM(C57:C64) -> 2195 | D65: =SUM(D57:D64) -> 1555 | E65: =SUM(E57:E64) -> 1235 | F65: =SUM(B65:E65) -> 7500 | G65: =SUM(G57:G64) -> 1
A67: For 223-333 riders 10 places
A68: Placings | B68: 1D | C68: 2D | D68: 3D | E68: 4D
A69: 1st | B69: =$B$7*$G$69 -> 528.15 | C69: =$C$7*$G$69 -> 460.95 | D69: =$D$7*$G$69 -> 326.55 | E69: =$E$7*$G$69 -> 259.35 | F69: è | G69: 0.21
A70: 2nd | B70: =$B$7*$G$70 -> 452.7 | C70: =$C$7*$G$70 -> 395.1 | D70: =$D$7*$G$70 -> 279.9 | E70: =$E$7*$G$70 -> 222.3 | F70: è | G70: 0.18
A71: 3rd | B71: =$B$7*$G$71 -> 377.25 | C71: =$C$7*$G$71 -> 329.25 | D71: =$D$7*$G$71 -> 233.25 | E71: =$E$7*$G$71 -> 185.25 | F71: è | G71: 0.15
A72: 4th | B72: =$B$7*$G$72 -> 301.8 | C72: =$C$7*$G$72 -> 263.4 | D72: =$D$7*$G$72 -> 186.6 | E72: =$E$7*$G$72 -> 148.2 | F72: è | G72: 0.12
A73: 5th | B73: =$B$7*$G$73 -> 226.35 | C73: =$C$7*$G$73 -> 197.55 | D73: =$D$7*$G$73 -> 139.95 | E73: =$E$7*$G$73 -> 111.15 | F73: è | G73: 0.09
A74: 6th | B74: =$B$7*$G$74 -> 176.05 | C74: =$C$7*$G$74 -> 153.65 | D74: =$D$7*$G$74 -> 108.85 | E74: =$E$7*$G$74 -> 86.45 | F74: è | G74: 0.07
A75: 7th | B75: =$B$7*$G$75 -> 150.9 | C75: =$C$7*$G$75 -> 131.7 | D75: =$D$7*$G$75 -> 93.3 | E75: =$E$7*$G$75 -> 74.1 | F75: è | G75: 0.06
A76: 8th | B76: =$B$7*$G$76 -> 125.75 | C76: =$C$7*$G$76 -> 109.75 | D76: =$D$7*$G$76 -> 77.75 | E76: =$E$7*$G$76 -> 61.75 | F76: è | G76: 0.05
A77: 9th | B77: =$B$7*$G$77 -> 100.6 | C77: =$C$7*$G$77 -> 87.8 | D77: =$D$7*$G$77 -> 62.2 | E77: =$E$7*$G$77 -> 49.4 | F77: è | G77: 0.04
A78: 10th | B78: =$B$7*$G$78 -> 75.45 | C78: =$C$7*$G$78 -> 65.85 | D78: =$D$7*$G$78 -> 46.65 | E78: =$E$7*$G$78 -> 37.05 | F78: è | G78: 0.03
A79: Totals | B79: =SUM(B69:B78) -> 2515 | C79: =SUM(C69:C78) -> 2195 | D79: =SUM(D69:D78) -> 1555 | E79: =SUM(E69:E78) -> 1235 | F79: =B79+C79+D79+E79 -> 7500 | G79: =SUM(G69:G78) -> 1
A81: For 334-500 riders 12 places
A82: Placings | B82: 1D | C82: 2D | D82: 3D | E82: 4D
A83: 1st | B83: =$B$7*$G$83 -> 477.85 | C83: =$C$7*$G$83 -> 417.05 | D83: =$D$7*$G$83 -> 295.45 | E83: =$E$7*$G$83 -> 234.65 | F83: è | G83: 0.19
A84: 2nd | B84: =$B$7*$G$84 -> 377.25 | C84: =$C$7*$G$84 -> 329.25 | D84: =$D$7*$G$84 -> 233.25 | E84: =$E$7*$G$84 -> 185.25 | F84: è | G84: 0.15
A85: 3rd | B85: =$B$7*$G$85 -> 301.8 | C85: =$C$7*$G$85 -> 263.4 | D85: =$D$7*$G$85 -> 186.6 | E85: =$E$7*$G$85 -> 148.2 | F85: è | G85: 0.12
A86: 4th | B86: =$B$7*$G$86 -> 251.5 | C86: =$C$7*$G$86 -> 219.5 | D86: =$D$7*$G$86 -> 155.5 | E86: =$E$7*$G$86 -> 123.5 | F86: è | G86: 0.1
A87: 5th | B87: =$B$7*$G$87 -> 226.35 | C87: =$C$7*$G$87 -> 197.55 | D87: =$D$7*$G$87 -> 139.95 | E87: =$E$7*$G$87 -> 111.15 | F87: è | G87: 0.09
A88: 6th | B88: =$B$7*$G$88 -> 201.2 | C88: =$C$7*$G$88 -> 175.6 | D88: =$D$7*$G$88 -> 124.4 | E88: =$E$7*$G$88 -> 98.8 | F88: è | G88: 0.08
A89: 7th | B89: =$B$7*$G$89 -> 176.05 | C89: =$C$7*$G$89 -> 153.65 | D89: =$D$7*$G$89 -> 108.85 | E89: =$E$7*$G$89 -> 86.45 | F89: è | G89: 0.07
A90: 8th | B90: =$B$7*$G$90 -> 150.9 | C90: =$C$7*$G$90 -> 131.7 | D90: =$D$7*$G$90 -> 93.3 | E90: =$E$7*$G$90 -> 74.1 | F90: è | G90: 0.06
A91: 9th | B91: =$B$7*$G$91 -> 125.75 | C91: =$C$7*$G$91 -> 109.75 | D91: =$D$7*$G$91 -> 77.75 | E91: =$E$7*$G$91 -> 61.75 | F91: è | G91: 0.05
A92: 10th | B92: =$B$7*$G$92 -> 100.6 | C92: =$C$7*$G$92 -> 87.8 | D92: =$D$7*$G$92 -> 62.2 | E92: =$E$7*$G$92 -> 49.4 | F92: è | G92: 0.04
A93: 11th | B93: =$B$7*$G$93 -> 75.45 | C93: =$C$7*$G$93 -> 65.85 | D93: =$D$7*$G$93 -> 46.65 | E93: =$E$7*$G$93 -> 37.05 | F93: è | G93: 0.03
A94: 12th | B94: =$B$7*$G$94 -> 50.3 | C94: =$C$7*$G$94 -> 43.9 | D94: =$D$7*$G$94 -> 31.1 | E94: =$E$7*$G$94 -> 24.7 | F94: è | G94: 0.02
A95: Totals | B95: =SUM(B83:B94) -> 2515 | C95: =SUM(C83:C94) -> 2195 | D95: 1555 | E95: 1235 | F95: =B95+C95+D95+E95 -> 7500 | G95: =SUM(G83:G94) -> 1
A97: For 501-750 riders 15 places
A98: Placings | B98: 1D | C98: 2D | D98: 3D | E98: 4D
A99: 1st | B99: =$B$7*$G$99 -> 452.7 | C99: =$C$7*$G$99 -> 395.1 | D99: =$D$7*$G$99 -> 279.9 | E99: =$E$7*$G$99 -> 222.3 | F99: è | G99: 0.18
A100: 2nd | B100: =$B$7*$G$100 -> 377.25 | C100: =$C$7*$G$100 -> 329.25 | D100: =$D$7*$G$100 -> 233.25 | E100: =$E$7*$G$100 -> 185.25 | F100: è | G100: 0.15
A101: 3rd | B101: =$B$7*$G$101 -> 301.8 | C101: =$C$7*$G$101 -> 263.4 | D101: =$D$7*$G$101 -> 186.6 | E101: =$E$7*$G$101 -> 148.2 | F101: è | G101: 0.12
A102: 4th | B102: =$B$7*$G$102 -> 251.5 | C102: =$C$7*$G$102 -> 219.5 | D102: =$D$7*$G$102 -> 155.5 | E102: =$E$7*$G$102 -> 123.5 | F102: è | G102: 0.1
A103: 5th | B103: =$B$7*$G$103 -> 213.775 | C103: =$C$7*$G$103 -> 186.575 | D103: =$D$7*$G$103 -> 132.175 | E103: =$E$7*$G$103 -> 104.975 | F103: è | G103: 0.085
A104: 6th | B104: =$B$7*$G$104 -> 176.05 | C104: =$C$7*$G$104 -> 153.65 | D104: =$D$7*$G$104 -> 108.85 | E104: =$E$7*$G$104 -> 86.45 | F104: è | G104: 0.07
A105: 7th | B105: =$B$7*$G$105 -> 150.9 | C105: =$C$7*$G$105 -> 131.7 | D105: =$D$7*$G$105 -> 93.3 | E105: =$E$7*$G$105 -> 74.1 | F105: è | G105: 0.06
A106: 8th | B106: =$B$7*$G$106 -> 125.75 | C106: =$C$7*$G$106 -> 109.75 | D106: =$D$7*$G$106 -> 77.75 | E106: =$E$7*$G$106 -> 61.75 | F106: è | G106: 0.05
A107: 9th | B107: =$B$7*$G$107 -> 106.8875 | C107: =$C$7*$G$107 -> 93.2875 | D107: =$D$7*$G$107 -> 66.0875 | E107: =$E$7*$G$107 -> 52.4875 | F107: è | G107: 0.0425
A108: 10th | B108: =$B$7*$G$108 -> 88.025 | C108: =$C$7*$G$108 -> 76.825 | D108: =$D$7*$G$108 -> 54.425 | E108: =$E$7*$G$108 -> 43.225 | F108: è | G108: 0.035
A109: 11th | B109: =$B$7*$G$109 -> 75.45 | C109: =$C$7*$G$109 -> 65.85 | D109: =$D$7*$G$109 -> 46.65 | E109: =$E$7*$G$109 -> 37.05 | F109: è | G109: 0.03
A110: 12th | B110: =$B$7*$G$110 -> 62.875 | C110: =$C$7*$G$110 -> 54.875 | D110: =$D$7*$G$110 -> 38.875 | E110: =$E$7*$G$110 -> 30.875 | F110: è | G110: 0.025
A111: 13th | B111: =$B$7*$G$111 -> 50.3 | C111: =$C$7*$G$111 -> 43.9 | D111: =$D$7*$G$111 -> 31.1 | E111: =$E$7*$G$111 -> 24.7 | F111: è | G111: 0.02
A112: 14th | B112: =$B$7*$G$112 -> 44.0125 | C112: =$C$7*$G$112 -> 38.4125 | D112: =$D$7*$G$112 -> 27.2125 | E112: =$E$7*$G$112 -> 21.6125 | F112: è | G112: 0.0175
A113: 15th | B113: =$B$7*$G$113 -> 37.725 | C113: =$C$7*$G$113 -> 32.925 | D113: =$D$7*$G$113 -> 23.325 | E113: =$E$7*$G$113 -> 18.525 | F113: è | G113: 0.015
A114: Totals | B114: =SUM(B99:B113) -> 2515 | C114: =SUM(C99:C113) -> 2195 | D114: 1555 | E114: 1235 | F114: =B114+C114+D114+E114 -> 7500 | G114: =SUM(G99:G113) -> 1
A116: For 751-1200 riders 20 places
A117: Placings | B117: 1D | C117: 2D | D117: 3D | E117: 4D
A118: 1st | B118: =$B$7*$G$118 -> 352.1 | C118: =$C$7*$G$118 -> 307.3 | D118: =$D$7*$G$118 -> 217.7 | E118: =$E$7*$G$118 -> 172.9 | F118: è | G118: 0.14
A119: 2nd | B119: =$B$7*$G$119 -> 276.65 | C119: =$C$7*$G$119 -> 241.45 | D119: =$D$7*$G$119 -> 171.05 | E119: =$E$7*$G$119 -> 135.85 | F119: è | G119: 0.11
A120: 3rd | B120: =$B$7*$G$120 -> 226.35 | C120: =$C$7*$G$120 -> 197.55 | D120: =$D$7*$G$120 -> 139.95 | E120: =$E$7*$G$120 -> 111.15 | F120: è | G120: 0.09
A121: 4th | B121: =$B$7*$G$121 -> 193.655 | C121: =$C$7*$G$121 -> 169.015 | D121: =$D$7*$G$121 -> 119.735 | E121: =$E$7*$G$121 -> 95.095 | F121: è | G121: 0.077
A122: 5th | B122: =$B$7*$G$122 -> 176.05 | C122: =$C$7*$G$122 -> 153.65 | D122: =$D$7*$G$122 -> 108.85 | E122: =$E$7*$G$122 -> 86.45 | F122: è | G122: 0.07
A123: 6th | B123: =$B$7*$G$123 -> 163.475 | C123: =$C$7*$G$123 -> 142.675 | D123: =$D$7*$G$123 -> 101.075 | E123: =$E$7*$G$123 -> 80.275 | F123: è | G123: 0.065
A124: 7th | B124: =$B$7*$G$124 -> 150.9 | C124: =$C$7*$G$124 -> 131.7 | D124: =$D$7*$G$124 -> 93.3 | E124: =$E$7*$G$124 -> 74.1 | F124: è | G124: 0.06
A125: 8th | B125: =$B$7*$G$125 -> 138.325 | C125: =$C$7*$G$125 -> 120.725 | D125: =$D$7*$G$125 -> 85.525 | E125: =$E$7*$G$125 -> 67.925 | F125: è | G125: 0.055
A126: 9th | B126: =$B$7*$G$126 -> 125.75 | C126: =$C$7*$G$126 -> 109.75 | D126: =$D$7*$G$126 -> 77.75 | E126: =$E$7*$G$126 -> 61.75 | F126: è | G126: 0.05
A127: 10th | B127: =$B$7*$G$127 -> 113.175 | C127: =$C$7*$G$127 -> 98.775 | D127: =$D$7*$G$127 -> 69.975 | E127: =$E$7*$G$127 -> 55.575 | F127: è | G127: 0.045
A128: 11th | B128: =$B$7*$G$128 -> 100.6 | C128: =$C$7*$G$128 -> 87.8 | D128: =$D$7*$G$128 -> 62.2 | E128: =$E$7*$G$128 -> 49.4 | F128: è | G128: 0.04
A129: 12th | B129: =$B$7*$G$129 -> 93.055 | C129: =$C$7*$G$129 -> 81.215 | D129: =$D$7*$G$129 -> 57.535 | E129: =$E$7*$G$129 -> 45.695 | F129: è | G129: 0.037
A130: 13th | B130: =$B$7*$G$130 -> 82.995 | C130: =$C$7*$G$130 -> 72.435 | D130: =$D$7*$G$130 -> 51.315 | E130: =$E$7*$G$130 -> 40.755 | F130: è | G130: 0.033
A131: 14th | B131: =$B$7*$G$131 -> 72.935 | C131: =$C$7*$G$131 -> 63.655 | D131: =$D$7*$G$131 -> 45.095 | E131: =$E$7*$G$131 -> 35.815 | F131: è | G131: 0.029
A132: 15th | B132: =$B$7*$G$132 -> 62.875 | C132: =$C$7*$G$132 -> 54.875 | D132: =$D$7*$G$132 -> 38.875 | E132: =$E$7*$G$132 -> 30.875 | F132: è | G132: 0.025
A133: 16th | B133: =$B$7*$G$133 -> 52.815 | C133: =$C$7*$G$133 -> 46.095 | D133: =$D$7*$G$133 -> 32.655 | E133: =$E$7*$G$133 -> 25.935 | F133: è | G133: 0.021
A134: 17th | B134: =$B$7*$G$134 -> 42.755 | C134: =$C$7*$G$134 -> 37.315 | D134: =$D$7*$G$134 -> 26.435 | E134: =$E$7*$G$134 -> 20.995 | F134: è | G134: 0.017
A135: 18th | B135: =$B$7*$G$135 -> 35.21 | C135: =$C$7*$G$135 -> 30.73 | D135: =$D$7*$G$135 -> 21.77 | E135: =$E$7*$G$135 -> 17.29 | F135: è | G135: 0.014
A136: 19th | B136: =$B$7*$G$136 -> 30.18 | C136: =$C$7*$G$136 -> 26.34 | D136: =$D$7*$G$136 -> 18.66 | E136: =$E$7*$G$136 -> 14.82 | F136: è | G136: 0.012
A137: 20th | B137: =$B$7*$G$137 -> 25.15 | C137: =$C$7*$G$137 -> 21.95 | D137: =$D$7*$G$137 -> 15.55 | E137: =$E$7*$G$137 -> 12.35 | F137: è | G137: 0.01
A138: Totals | B138: =SUM(B118:B137) -> 2515 | C138: =SUM(C118:C137) -> 2195 | D138: 1555 | E138: 1235 | F138: =B138+C138+D138+E138 -> 7500 | G138: =SUM(G118:G137) -> 1
A140: For 1201 or More riders 30 places
A141: Placings | B141: 1D | C141: 2D | D141: 3D | E141: 4D
A142: 1st | B142: =$B$7*$G$142 -> 301.8 | C142: =$C$7*$G$142 -> 263.4 | D142: =$D$7*$G$142 -> 186.6 | E142: =$E$7*$G$142 -> 148.2 | F142: è | G142: 0.12
A143: 2nd | B143: =$B$7*$G$143 -> 238.925 | C143: =$C$7*$G$143 -> 208.525 | D143: =$D$7*$G$143 -> 147.725 | E143: =$E$7*$G$143 -> 117.325 | F143: è | G143: 0.095
A144: 3rd | B144: =$B$7*$G$144 -> 183.595 | C144: =$C$7*$G$144 -> 160.235 | D144: =$D$7*$G$144 -> 113.515 | E144: =$E$7*$G$144 -> 90.155 | F144: è | G144: 0.073
A145: 4th | B145: =$B$7*$G$145 -> 155.93 | C145: =$C$7*$G$145 -> 136.09 | D145: =$D$7*$G$145 -> 96.41 | E145: =$E$7*$G$145 -> 76.57 | F145: è | G145: 0.062
A146: 5th | B146: =$B$7*$G$146 -> 125.75 | C146: =$C$7*$G$146 -> 109.75 | D146: =$D$7*$G$146 -> 77.75 | E146: =$E$7*$G$146 -> 61.75 | F146: è | G146: 0.05
A147: 6th | B147: =$B$7*$G$147 -> 113.175 | C147: =$C$7*$G$147 -> 98.775 | D147: =$D$7*$G$147 -> 69.975 | E147: =$E$7*$G$147 -> 55.575 | F147: è | G147: 0.045
A148: 7th | B148: =$B$7*$G$148 -> 108.145 | C148: =$C$7*$G$148 -> 94.385 | D148: =$D$7*$G$148 -> 66.865 | E148: =$E$7*$G$148 -> 53.105 | F148: è | G148: 0.043
A149: 8th | B149: =$B$7*$G$149 -> 100.6 | C149: =$C$7*$G$149 -> 87.8 | D149: =$D$7*$G$149 -> 62.2 | E149: =$E$7*$G$149 -> 49.4 | F149: è | G149: 0.04
A150: 9th | B150: =$B$7*$G$150 -> 93.055 | C150: =$C$7*$G$150 -> 81.215 | D150: =$D$7*$G$150 -> 57.535 | E150: =$E$7*$G$150 -> 45.695 | F150: è | G150: 0.037
A151: 10th | B151: =$B$7*$G$151 -> 88.025 | C151: =$C$7*$G$151 -> 76.825 | D151: =$D$7*$G$151 -> 54.425 | E151: =$E$7*$G$151 -> 43.225 | F151: è | G151: 0.035
A152: 11th | B152: =$B$7*$G$152 -> 82.995 | C152: =$C$7*$G$152 -> 72.435 | D152: =$D$7*$G$152 -> 51.315 | E152: =$E$7*$G$152 -> 40.755 | F152: è | G152: 0.033
A153: 12th | B153: =$B$7*$G$153 -> 77.965 | C153: =$C$7*$G$153 -> 68.045 | D153: =$D$7*$G$153 -> 48.205 | E153: =$E$7*$G$153 -> 38.285 | F153: è | G153: 0.031
A154: 13th | B154: =$B$7*$G$154 -> 72.935 | C154: =$C$7*$G$154 -> 63.655 | D154: =$D$7*$G$154 -> 45.095 | E154: =$E$7*$G$154 -> 35.815 | F154: è | G154: 0.029
A155: 14th | B155: =$B$7*$G$155 -> 67.905 | C155: =$C$7*$G$155 -> 59.265 | D155: =$D$7*$G$155 -> 41.985 | E155: =$E$7*$G$155 -> 33.345 | F155: è | G155: 0.027
A156: 15th | B156: =$B$7*$G$156 -> 62.875 | C156: =$C$7*$G$156 -> 54.875 | D156: =$D$7*$G$156 -> 38.875 | E156: =$E$7*$G$156 -> 30.875 | F156: è | G156: 0.025
A157: 16th | B157: =$B$7*$G$157 -> 60.36 | C157: =$C$7*$G$157 -> 52.68 | D157: =$D$7*$G$157 -> 37.32 | E157: =$E$7*$G$157 -> 29.64 | F157: è | G157: 0.024
A158: 17th | B158: =$B$7*$G$158 -> 57.845 | C158: =$C$7*$G$158 -> 50.485 | D158: =$D$7*$G$158 -> 35.765 | E158: =$E$7*$G$158 -> 28.405 | F158: è | G158: 0.023
A159: 18th | B159: =$B$7*$G$159 -> 55.33 | C159: =$C$7*$G$159 -> 48.29 | D159: =$D$7*$G$159 -> 34.21 | E159: =$E$7*$G$159 -> 27.17 | F159: è | G159: 0.022
A160: 19th | B160: =$B$7*$G$160 -> 52.815 | C160: =$C$7*$G$160 -> 46.095 | D160: =$D$7*$G$160 -> 32.655 | E160: =$E$7*$G$160 -> 25.935 | F160: è | G160: 0.021
A161: 20th | B161: =$B$7*$G$161 -> 50.3 | C161: =$C$7*$G$161 -> 43.9 | D161: =$D$7*$G$161 -> 31.1 | E161: =$E$7*$G$161 -> 24.7 | F161: è | G161: 0.02
A162: 21st | B162: =$B$7*$G$162 -> 47.785 | C162: =$C$7*$G$162 -> 41.705 | D162: =$D$7*$G$162 -> 29.545 | E162: =$E$7*$G$162 -> 23.465 | F162: è | G162: 0.019
A163: 22nd | B163: =$B$7*$G$163 -> 45.27 | C163: =$C$7*$G$163 -> 39.51 | D163: =$D$7*$G$163 -> 27.99 | E163: =$E$7*$G$163 -> 22.23 | F163: è | G163: 0.018
A164: 23rd | B164: =$B$7*$G$164 -> 42.755 | C164: =$C$7*$G$164 -> 37.315 | D164: =$D$7*$G$164 -> 26.435 | E164: =$E$7*$G$164 -> 20.995 | F164: è | G164: 0.017
A165: 24th | B165: =$B$7*$G$165 -> 40.24 | C165: =$C$7*$G$165 -> 35.12 | D165: =$D$7*$G$165 -> 24.88 | E165: =$E$7*$G$165 -> 19.76 | F165: è | G165: 0.016
A166: 25th | B166: =$B$7*$G$166 -> 37.725 | C166: =$C$7*$G$166 -> 32.925 | D166: =$D$7*$G$166 -> 23.325 | E166: =$E$7*$G$166 -> 18.525 | F166: è | G166: 0.015
A167: 26th | B167: =$B$7*$G$167 -> 35.21 | C167: =$C$7*$G$167 -> 30.73 | D167: =$D$7*$G$167 -> 21.77 | E167: =$E$7*$G$167 -> 17.29 | F167: è | G167: 0.014
A168: 27th | B168: =$B$7*$G$168 -> 32.695 | C168: =$C$7*$G$168 -> 28.535 | D168: =$D$7*$G$168 -> 20.215 | E168: =$E$7*$G$168 -> 16.055 | F168: è | G168: 0.013
A169: 28th | B169: =$B$7*$G$169 -> 30.18 | C169: =$C$7*$G$169 -> 26.34 | D169: =$D$7*$G$169 -> 18.66 | E169: =$E$7*$G$169 -> 14.82 | F169: è | G169: 0.012
A170: 29th | B170: =$B$7*$G$170 -> 27.665 | C170: =$C$7*$G$170 -> 24.145 | D170: =$D$7*$G$170 -> 17.105 | E170: =$E$7*$G$170 -> 13.585 | F170: è | G170: 0.011
A171: 30th | B171: =$B$7*$G$171 -> 25.15 | C171: =$C$7*$G$171 -> 21.95 | D171: =$D$7*$G$171 -> 15.55 | E171: =$E$7*$G$171 -> 12.35 | F171: è | G171: 0.01
A172: Totals | B172: =SUM(B142:B171) -> 2515 | C172: =SUM(C142:C171) -> 2195 | D172: =SUM(D142:D171) -> 1555 | E172: =SUM(E142:E171) -> 1235 | F172: =B172+C172+D172+E172 -> 7500 | G172: =SUM(G142:G171) -> 1

Sheet 5D Payout BBR
A1: 5D Payout BBR
A2: Entry Fee | B2: # Entries | C2: % Payback | D2: $ From Entry | E2: Added $ | F2: Total Payout | G2: Total $ Held
A3: 50 | B3: 206 | C3: 0.8 | D3: =$A$3*$C$3*$B$3 -> 8240 | E3: 2000 | F3: =($A$3*$C$3)*$B$3+$E$3 -> 10240 | G3: =$A$3*(100%-$C$3)*$B$3 -> 2060
A4: 13
A5: % in each D | B5: 0.3 | C5: 0.25 | D5: 0.2 | E5: 0.15 | F5: 0.1 | G5: Total % Payout | H5: =SUM(B5:F5) -> 1
B6: 1D | C6: 2D | D6: 3D | E6: 4D | F6: 5D
B7: =(($A$3*$B$3*$C$3*$B$5)+($E$3*$B$5)) -> 3072 | C7: =(($A$3*$B$3*$C$3*$C$5)+($E$3*$C$5)) -> 2560 | D7: =(($A$3*$B$3*$C$3*$D$5)+($E$3*$D$5)) -> 2048 | E7: =(($A$3*$B$3*$C$3*$E$5)+($E$3*$E$5)) -> 1536 | F7: =(($A$3*$B$3*$C$3*$F$5)+($E$3*$F$5)) -> 1024
A8: Totals | B8: =SUM(B7) -> 3072 | C8: =SUM(C7) -> 2560 | D8: 2048 | E8: 1536 | F8: 1024 | G8: =SUM(B8:F8) -> 10240
A10: For 1-25 riders 1 place
A11: Placings | B11: 1D | C11: 2D | D11: 3D | E11: 4D | F11: 5D
A12: 1st | B12: =$B$7*$H$12 -> 3072 | C12: =$C$7*$H$12 -> 2560 | D12: =$D$7*$H$12 -> 2048 | E12: =$E$7*$H$12 -> 1536 | F12: =$F$7*$H$12 -> 1024 | G12: è | H12: 1
A13: Totals | B13: =SUM(B12:B12) -> 3072 | C13: =SUM(C12:C12) -> 2560 | D13: =SUM(D12:D12) -> 2048 | E13: =SUM(E12:E12) -> 1536 | F13: =SUM(F12) -> 1024 | G13: =SUM(B13:F13) -> 10240 | H13: =SUM(H12) -> 1
A15: For 26-50 riders 2 places
A16: Placings | B16: 1D | C16: 2D | D16: 3D | E16: 4D | F16: 5D
A17: 1st | B17: =$B$7*$H$17 -> 1843.2 | C17: =$C$7*$H$17 -> 1536 | D17: =$D$7*$H$17 -> 1228.8 | E17: =$E$7*$H$17 -> 921.6 | F17: =$F$7*$H$17 -> 614.4 | G17: è | H17: 0.6
A18: 2nd | B18: =$B$7*$H$18 -> 1228.8 | C18: =$C$7*$H$18 -> 1024 | D18: =$D$7*$H$18 -> 819.2 | E18: =$E$7*$H$18 -> 614.4 | F18: =$F$7*$H$18 -> 409.6 | G18: è | H18: 0.4
A19: Totals | B19: =SUM(B17:B18) -> 3072 | C19: =SUM(C17:C18) -> 2560 | D19: =SUM(D17:D18) -> 2048 | E19: =SUM(E17:E18) -> 1536 | F19: =SUM(F17:F18) -> 1024 | G19: =SUM(B19:F19) -> 10240 | H19: =SUM(H17:H18) -> 1
A21: For 51-100 riders 3 places
A22: Placings | B22: 1D | C22: 2D | D22: 3D | E22: 4D | F22: 5D
A23: 1st | B23: =$B$7*$H$23 -> 1536 | C23: =$C$7*$H$23 -> 1280 | D23: =$D$7*$H$23 -> 1024 | E23: =$E$7*$H$23 -> 768 | F23: =$F$7*$H$23 -> 512 | G23: è | H23: 0.5
A24: 2nd | B24: =$B$7*$H$24 -> 921.6 | C24: =$C$7*$H$24 -> 768 | D24: =$D$7*$H$24 -> 614.4 | E24: =$E$7*$H$24 -> 460.8 | F24: =$F$7*$H$24 -> 307.2 | G24: è | H24: 0.3
A25: 3rd | B25: =$B$7*$H$25 -> 614.4 | C25: =$C$7*$H$25 -> 512 | D25: =$D$7*$H$25 -> 409.6 | E25: =$E$7*$H$25 -> 307.2 | F25: =$F$7*$H$25 -> 204.8 | G25: è | H25: 0.2
A26: Totals | B26: =SUM(B23:B25) -> 3072 | C26: =SUM(C23:C25) -> 2560 | D26: =SUM(D23:D25) -> 2048 | E26: =SUM(E23:E25) -> 1536 | F26: =SUM(F23:F25) -> 1024 | G26: =SUM(B26:F26) -> 10240 | H26: =SUM(H23:H25) -> 1
A28: For 101-143 riders 4 places
A29: Placings | B29: 1D | C29: 2D | D29: 3D | E29: 4D | F29: 5D
A30: 1st | B30: =$B$7*$H$30 -> 1228.8 | C30: =$C$7*$H$30 -> 1024 | D30: =$D$7*$H$30 -> 819.2 | E30: =$E$7*$H$30 -> 614.4 | F30: =$F$7*$H$30 -> 409.6 | G30: è | H30: 0.4
A31: 2nd | B31: =$B$7*$H$31 -> 921.6 | C31: =$C$7*$H$31 -> 768 | D31: =$D$7*$H$31 -> 614.4 | E31: =$E$7*$H$31 -> 460.8 | F31: =$F$7*$H$31 -> 307.2 | G31: è | H31: 0.3
A32: 3rd | B32: =$B$7*$H$32 -> 614.4 | C32: =$C$7*$H$32 -> 512 | D32: =$D$7*$H$32 -> 409.6 | E32: =$E$7*$H$32 -> 307.2 | F32: =$F$7*$H$32 -> 204.8 | G32: è | H32: 0.2
A33: 4th | B33: =$B$7*$H$33 -> 307.2 | C33: =$C$7*$H$33 -> 256 | D33: =$D$7*$H$33 -> 204.8 | E33: =$E$7*$H$33 -> 153.6 | F33: =$F$7*$H$33 -> 102.4 | G33: è | H33: 0.1
A34: Totals | B34: =SUM(B30:B33) -> 3072 | C34: =SUM(C30:C33) -> 2560 | D34: =SUM(D30:D33) -> 2048 | E34: =SUM(E30:E33) -> 1536 | F34: =SUM(F30:F33) -> 1024 | G34: =SUM(B34:F34) -> 10240 | H34: =SUM(H30:H33) -> 1
A36: For 144-200 riders 5 places
A37: Placings | B37: 1D | C37: 2D | D37: 3D | E37: 4D | F37: 5D
A38: 1st | B38: =$B$7*$H$38 -> 1013.76 | C38: =$C$7*$H$38 -> 844.8 | D38: 709.5 | E38: =$E$7*$H$38 -> 506.88 | F38: =$F$7*$H$38 -> 337.92 | G38: è | H38: 0.33
A39: 2nd | B39: =$B$7*$H$39 -> 829.44 | C39: =$C$7*$H$39 -> 691.2 | D39: 580.5 | E39: =$E$7*$H$39 -> 414.72 | F39: =$F$7*$H$39 -> 276.48 | G39: è | H39: 0.27
A40: 3rd | B40: =$B$7*$H$40 -> 614.4 | C40: =$C$7*$H$40 -> 512 | D40: 430 | E40: =$E$7*$H$40 -> 307.2 | F40: =$F$7*$H$40 -> 204.8 | G40: è | H40: 0.2
A41: 4th | B41: =$B$7*$H$41 -> 399.36 | C41: =$C$7*$H$41 -> 332.8 | D41: 279.5 | E41: =$E$7*$H$41 -> 199.68 | F41: =$F$7*$H$41 -> 133.12 | G41: è | H41: 0.13
A42: 5th | B42: =$B$7*$H$42 -> 215.04 | C42: =$C$7*$H$42 -> 179.2 | D42: 150.5 | E42: =$E$7*$H$42 -> 107.52 | F42: =$F$7*$H$42 -> 71.68 | G42: è | H42: 0.07
A43: Totals | B43: =SUM(B38:B42) -> 3072 | C43: =SUM(C38:C42) -> 2560 | D43: =SUM(D38:D42) -> 2150 | E43: =SUM(E38:E42) -> 1536 | F43: =SUM(F38:F42) -> 1024 | G43: =SUM(B43:F43) -> 10342 | H43: =SUM(H38:H42) -> 1
A45: For 201-250 riders 6 places
A46: Placings | B46: 1D | C46: 2D | D46: 3D | E46: 4D | F46: 5D
A47: 1st | B47: =$B$7*$H$47 -> 890.88 | C47: =$C$7*$H$47 -> 742.4 | D47: =$D$7*$H$47 -> 593.92 | E47: =$E$7*$H$47 -> 445.44 | F47: =$F$7*$H$47 -> 296.96 | G47: è | H47: 0.29
A48: 2nd | B48: =$B$7*$H$48 -> 737.28 | C48: =$C$7*$H$48 -> 614.4 | D48: =$D$7*$H$48 -> 491.52 | E48: =$E$7*$H$48 -> 368.64 | F48: =$F$7*$H$48 -> 245.76 | G48: è | H48: 0.24
A49: 3rd | B49: =$B$7*$H$49 -> 583.68 | C49: =$C$7*$H$49 -> 486.4 | D49: =$D$7*$H$49 -> 389.12 | E49: =$E$7*$H$49 -> 291.84 | F49: =$F$7*$H$49 -> 194.56 | G49: è | H49: 0.19
A50: 4th | B50: =$B$7*$H$50 -> 430.08 | C50: =$C$7*$H$50 -> 358.4 | D50: =$D$7*$H$50 -> 286.72 | E50: =$E$7*$H$50 -> 215.04 | F50: =$F$7*$H$50 -> 143.36 | G50: è | H50: 0.14
A51: 5th | B51: =$B$7*$H$51 -> 276.48 | C51: =$C$7*$H$51 -> 230.4 | D51: =$D$7*$H$51 -> 184.32 | E51: =$E$7*$H$51 -> 138.24 | F51: =$F$7*$H$51 -> 92.16 | G51: è | H51: 0.09
A52: 6th | B52: =$B$7*$H$52 -> 153.6 | C52: =$C$7*$H$52 -> 128 | D52: =$D$7*$H$52 -> 102.4 | E52: =$E$7*$H$52 -> 76.8 | F52: =$F$7*$H$52 -> 51.2 | G52: è | H52: 0.05
A53: Totals | B53: =SUM(B47:B52) -> 3072 | C53: =SUM(C47:C52) -> 2560 | D53: =SUM(D47:D52) -> 2048 | E53: =SUM(E47:E52) -> 1536 | F53: =SUM(F47:F52) -> 1024 | G53: =SUM(B53:F53) -> 10240 | H53: =SUM(H47:H52) -> 1
A55: For 251-333 riders 8 places
A56: Placings | B56: 1D | C56: 2D | D56: 3D | E56: 4D | F56: 5D
A57: 1st | B57: =$B$7*$H$57 -> 737.28 | C57: =$C$7*$H$57 -> 614.4 | D57: =$D$7*$H$57 -> 491.52 | E57: =$E$7*$H$57 -> 368.64 | F57: =$F$7*$H$57 -> 245.76 | G57: è | H57: 0.24
A58: 2nd | B58: =$B$7*$H$58 -> 614.4 | C58: =$C$7*$H$58 -> 512 | D58: =$D$7*$H$58 -> 409.6 | E58: =$E$7*$H$58 -> 307.2 | F58: =$F$7*$H$58 -> 204.8 | G58: è | H58: 0.2
A59: 3rd | B59: =$B$7*$H$59 -> 522.24 | C59: =$C$7*$H$59 -> 435.2 | D59: =$D$7*$H$59 -> 348.16 | E59: =$E$7*$H$59 -> 261.12 | F59: =$F$7*$H$59 -> 174.08 | G59: è | H59: 0.17
A60: 4th | B60: =$B$7*$H$60 -> 399.36 | C60: =$C$7*$H$60 -> 332.8 | D60: =$D$7*$H$60 -> 266.24 | E60: =$E$7*$H$60 -> 199.68 | F60: =$F$7*$H$60 -> 133.12 | G60: è | H60: 0.13
A61: 5th | B61: =$B$7*$H$61 -> 307.2 | C61: =$C$7*$H$61 -> 256 | D61: =$D$7*$H$61 -> 204.8 | E61: =$E$7*$H$61 -> 153.6 | F61: =$F$7*$H$61 -> 102.4 | G61: è | H61: 0.1
A62: 6th | B62: =$B$7*$H$62 -> 215.04 | C62: =$C$7*$H$62 -> 179.2 | D62: =$D$7*$H$62 -> 143.36 | E62: =$E$7*$H$62 -> 107.52 | F62: =$F$7*$H$62 -> 71.68 | G62: è | H62: 0.07
A63: 7th | B63: =$B$7*$H$63 -> 153.6 | C63: =$C$7*$H$63 -> 128 | D63: =$D$7*$H$63 -> 102.4 | E63: =$E$7*$H$63 -> 76.8 | F63: =$F$7*$H$63 -> 51.2 | G63: è | H63: 0.05
A64: 8th | B64: =$B$7*$H$64 -> 122.88 | C64: =$C$7*$H$64 -> 102.4 | D64: =$D$7*$H$64 -> 81.92 | E64: =$E$7*$H$64 -> 61.44 | F64: =$F$7*$H$64 -> 40.96 | G64: è | H64: 0.04
A65: Totals | B65: =SUM(B57:B64) -> 3072 | C65: =SUM(C57:C64) -> 2560 | D65: =SUM(D57:D64) -> 2048 | E65: =SUM(E57:E64) -> 1536 | F65: =SUM(F57:F64) -> 1024 | G65: =SUM(B65:F65) -> 10240 | H65: =SUM(H57:H64) -> 1
A67: For 334-500 riders 10 places
A68: Placings | B68: 1D | C68: 2D | D68: 3D | E68: 4D | F68: 5D
A69: 1st | B69: =$B$7*$H$69 -> 645.12 | C69: =$C$7*$H$69 -> 537.6 | D69: =$D$7*$H$69 -> 430.08 | E69: =$E$7*$H$69 -> 322.56 | F69: =$F$7*$H$69 -> 215.04 | G69: è | H69: 0.21
A70: 2nd | B70: =$B$7*$H$70 -> 552.96 | C70: =$C$7*$H$70 -> 460.8 | D70: =$D$7*$H$70 -> 368.64 | E70: =$E$7*$H$70 -> 276.48 | F70: =$F$7*$H$70 -> 184.32 | G70: è | H70: 0.18
A71: 3rd | B71: =$B$7*$H$71 -> 460.8 | C71: =$C$7*$H$71 -> 384 | D71: =$D$7*$H$71 -> 307.2 | E71: =$E$7*$H$71 -> 230.4 | F71: =$F$7*$H$71 -> 153.6 | G71: è | H71: 0.15
A72: 4th | B72: =$B$7*$H$72 -> 368.64 | C72: =$C$7*$H$72 -> 307.2 | D72: =$D$7*$H$72 -> 245.76 | E72: =$E$7*$H$72 -> 184.32 | F72: =$F$7*$H$72 -> 122.88 | G72: è | H72: 0.12
A73: 5th | B73: =$B$7*$H$73 -> 276.48 | C73: =$C$7*$H$73 -> 230.4 | D73: =$D$7*$H$73 -> 184.32 | E73: =$E$7*$H$73 -> 138.24 | F73: =$F$7*$H$73 -> 92.16 | G73: è | H73: 0.09
A74: 6th | B74: =$B$7*$H$74 -> 215.04 | C74: =$C$7*$H$74 -> 179.2 | D74: =$D$7*$H$74 -> 143.36 | E74: =$E$7*$H$74 -> 107.52 | F74: =$F$7*$H$74 -> 71.68 | G74: è | H74: 0.07
A75: 7th | B75: =$B$7*$H$75 -> 184.32 | C75: =$C$7*$H$75 -> 153.6 | D75: =$D$7*$H$75 -> 122.88 | E75: =$E$7*$H$75 -> 92.16 | F75: =$F$7*$H$75 -> 61.44 | G75: è | H75: 0.06
A76: 8th | B76: =$B$7*$H$76 -> 153.6 | C76: =$C$7*$H$76 -> 128 | D76: =$D$7*$H$76 -> 102.4 | E76: =$E$7*$H$76 -> 76.8 | F76: =$F$7*$H$76 -> 51.2 | G76: è | H76: 0.05
A77: 9th | B77: =$B$7*$H$77 -> 122.88 | C77: =$C$7*$H$77 -> 102.4 | D77: =$D$7*$H$77 -> 81.92 | E77: =$E$7*$H$77 -> 61.44 | F77: =$F$7*$H$77 -> 40.96 | G77: è | H77: 0.04
A78: 10th | B78: =$B$7*$H$78 -> 92.16 | C78: =$C$7*$H$78 -> 76.8 | D78: =$D$7*$H$78 -> 61.44 | E78: =$E$7*$H$78 -> 46.08 | F78: =$F$7*$H$78 -> 30.72 | G78: è | H78: 0.03
A79: Totals | B79: =SUM(B69:B78) -> 3072 | C79: =SUM(C69:C78) -> 2560 | D79: 2048 | E79: 1536 | F79: 1024 | G79: =SUM(B79:F79) -> 10240 | H79: =SUM(H69:H78) -> 1
A81: For 501-666 riders 12 places
A82: Placings | B82: 1D | C82: 2D | D82: 3D | E82: 4D | F82: 5D
A83: 1st | B83: =$B$7*$H$83 -> 583.68 | C83: =$C$7*$H$83 -> 486.4 | D83: =$D$7*$H$83 -> 389.12 | E83: =$E$7*$H$83 -> 291.84 | F83: =$F$7*$H$83 -> 194.56 | G83: è | H83: 0.19
A84: 2nd | B84: =$B$7*$H$84 -> 460.8 | C84: =$C$7*$H$84 -> 384 | D84: =$D$7*$H$84 -> 307.2 | E84: =$E$7*$H$84 -> 230.4 | F84: =$F$7*$H$84 -> 153.6 | G84: è | H84: 0.15
A85: 3rd | B85: =$B$7*$H$85 -> 368.64 | C85: =$C$7*$H$85 -> 307.2 | D85: =$D$7*$H$85 -> 245.76 | E85: =$E$7*$H$85 -> 184.32 | F85: =$F$7*$H$85 -> 122.88 | G85: è | H85: 0.12
A86: 4th | B86: =$B$7*$H$86 -> 307.2 | C86: =$C$7*$H$86 -> 256 | D86: =$D$7*$H$86 -> 204.8 | E86: =$E$7*$H$86 -> 153.6 | F86: =$F$7*$H$86 -> 102.4 | G86: è | H86: 0.1
A87: 5th | B87: =$B$7*$H$87 -> 276.48 | C87: =$C$7*$H$87 -> 230.4 | D87: =$D$7*$H$87 -> 184.32 | E87: =$E$7*$H$87 -> 138.24 | F87: =$F$7*$H$87 -> 92.16 | G87: è | H87: 0.09
A88: 6th | B88: =$B$7*$H$88 -> 245.76 | C88: =$C$7*$H$88 -> 204.8 | D88: =$D$7*$H$88 -> 163.84 | E88: =$E$7*$H$88 -> 122.88 | F88: =$F$7*$H$88 -> 81.92 | G88: è | H88: 0.08
A89: 7th | B89: =$B$7*$H$89 -> 215.04 | C89: =$C$7*$H$89 -> 179.2 | D89: =$D$7*$H$89 -> 143.36 | E89: =$E$7*$H$89 -> 107.52 | F89: =$F$7*$H$89 -> 71.68 | G89: è | H89: 0.07
A90: 8th | B90: =$B$7*$H$90 -> 184.32 | C90: =$C$7*$H$90 -> 153.6 | D90: =$D$7*$H$90 -> 122.88 | E90: =$E$7*$H$90 -> 92.16 | F90: =$F$7*$H$90 -> 61.44 | G90: è | H90: 0.06
A91: 9th | B91: =$B$7*$H$91 -> 153.6 | C91: =$C$7*$H$91 -> 128 | D91: =$D$7*$H$91 -> 102.4 | E91: =$E$7*$H$91 -> 76.8 | F91: =$F$7*$H$91 -> 51.2 | G91: è | H91: 0.05
A92: 10th | B92: =$B$7*$H$92 -> 122.88 | C92: =$C$7*$H$92 -> 102.4 | D92: =$D$7*$H$92 -> 81.92 | E92: =$E$7*$H$92 -> 61.44 | F92: =$F$7*$H$92 -> 40.96 | G92: è | H92: 0.04
A93: 11th | B93: =$B$7*$H$93 -> 92.16 | C93: =$C$7*$H$93 -> 76.8 | D93: =$D$7*$H$93 -> 61.44 | E93: =$E$7*$H$93 -> 46.08 | F93: =$F$7*$H$93 -> 30.72 | G93: è | H93: 0.03
A94: 12th | B94: =$B$7*$H$94 -> 61.44 | C94: =$C$7*$H$94 -> 51.2 | D94: =$D$7*$H$94 -> 40.96 | E94: =$E$7*$H$94 -> 30.72 | F94: =$F$7*$H$94 -> 20.48 | G94: è | H94: 0.02
A95: Totals | B95: =SUM(B83:B94) -> 3072 | C95: =SUM(C83:C94) -> 2560 | D95: =SUM(D83:D94) -> 2048 | E95: =SUM(E83:E94) -> 1536 | F95: =SUM(F83:F94) -> 1024 | G95: =SUM(B95:F95) -> 10240 | H95: =SUM(H83:H94) -> 1
A97: For 667-1000 riders 15 places
A98: Placings | B98: 1D | C98: 2D | D98: 3D | E98: 4D | F98: 5D
A99: 1st | B99: =$B$7*$H$99 -> 552.96 | C99: =$C$7*$H$99 -> 460.8 | D99: =$D$7*$H$99 -> 368.64 | E99: =$E$7*$H$99 -> 276.48 | F99: =$F$7*$H$99 -> 184.32 | G99: è | H99: 0.18
A100: 2nd | B100: =$B$7*$H$100 -> 460.8 | C100: =$C$7*$H$100 -> 384 | D100: =$D$7*$H$100 -> 307.2 | E100: =$E$7*$H$100 -> 230.4 | F100: =$F$7*$H$100 -> 153.6 | G100: è | H100: 0.15
A101: 3rd | B101: =$B$7*$H$101 -> 368.64 | C101: =$C$7*$H$101 -> 307.2 | D101: =$D$7*$H$101 -> 245.76 | E101: =$E$7*$H$101 -> 184.32 | F101: =$F$7*$H$101 -> 122.88 | G101: è | H101: 0.12
A102: 4th | B102: =$B$7*$H$102 -> 307.2 | C102: =$C$7*$H$102 -> 256 | D102: =$D$7*$H$102 -> 204.8 | E102: =$E$7*$H$102 -> 153.6 | F102: =$F$7*$H$102 -> 102.4 | G102: è | H102: 0.1
A103: 5th | B103: =$B$7*$H$103 -> 261.12 | C103: =$C$7*$H$103 -> 217.6 | D103: =$D$7*$H$103 -> 174.08 | E103: =$E$7*$H$103 -> 130.56 | F103: =$F$7*$H$103 -> 87.04 | G103: è | H103: 0.085
A104: 6th | B104: =$B$7*$H$104 -> 215.04 | C104: =$C$7*$H$104 -> 179.2 | D104: =$D$7*$H$104 -> 143.36 | E104: =$E$7*$H$104 -> 107.52 | F104: =$F$7*$H$104 -> 71.68 | G104: è | H104: 0.07
A105: 7th | B105: =$B$7*$H$105 -> 184.32 | C105: =$C$7*$H$105 -> 153.6 | D105: =$D$7*$H$105 -> 122.88 | E105: =$E$7*$H$105 -> 92.16 | F105: =$F$7*$H$105 -> 61.44 | G105: è | H105: 0.06
A106: 8th | B106: =$B$7*$H$106 -> 153.6 | C106: =$C$7*$H$106 -> 128 | D106: =$D$7*$H$106 -> 102.4 | E106: =$E$7*$H$106 -> 76.8 | F106: =$F$7*$H$106 -> 51.2 | G106: è | H106: 0.05
A107: 9th | B107: =$B$7*$H$107 -> 130.56 | C107: =$C$7*$H$107 -> 108.8 | D107: =$D$7*$H$107 -> 87.04 | E107: =$E$7*$H$107 -> 65.28 | F107: =$F$7*$H$107 -> 43.52 | G107: è | H107: 0.0425
A108: 10th | B108: =$B$7*$H$108 -> 107.52 | C108: =$C$7*$H$108 -> 89.6 | D108: =$D$7*$H$108 -> 71.68 | E108: =$E$7*$H$108 -> 53.76 | F108: =$F$7*$H$108 -> 35.84 | G108: è | H108: 0.035
A109: 11th | B109: =$B$7*$H$109 -> 92.16 | C109: =$C$7*$H$109 -> 76.8 | D109: =$D$7*$H$109 -> 61.44 | E109: =$E$7*$H$109 -> 46.08 | F109: =$F$7*$H$109 -> 30.72 | G109: è | H109: 0.03
A110: 12th | B110: =$B$7*$H$110 -> 76.8 | C110: =$C$7*$H$110 -> 64 | D110: =$D$7*$H$110 -> 51.2 | E110: =$E$7*$H$110 -> 38.4 | F110: =$F$7*$H$110 -> 25.6 | G110: è | H110: 0.025
A111: 13th | B111: =$B$7*$H$111 -> 61.44 | C111: =$C$7*$H$111 -> 51.2 | D111: =$D$7*$H$111 -> 40.96 | E111: =$E$7*$H$111 -> 30.72 | F111: =$F$7*$H$111 -> 20.48 | G111: è | H111: 0.02
A112: 14th | B112: =$B$7*$H$112 -> 53.76 | C112: =$C$7*$H$112 -> 44.8 | D112: =$D$7*$H$112 -> 35.84 | E112: =$E$7*$H$112 -> 26.88 | F112: =$F$7*$H$112 -> 17.92 | G112: è | H112: 0.0175
A113: 15th | B113: =$B$7*$H$113 -> 46.08 | C113: =$C$7*$H$113 -> 38.4 | D113: =$D$7*$H$113 -> 30.72 | E113: =$E$7*$H$113 -> 23.04 | F113: =$F$7*$H$113 -> 15.36 | G113: è | H113: 0.015
A114: Totals | B114: =SUM(B99:B113) -> 3072 | C114: =SUM(C99:C113) -> 2560 | D114: =SUM(D99:D113) -> 2048 | E114: =SUM(E99:E113) -> 1536 | F114: =SUM(F99:F113) -> 1024 | G114: =SUM(B114:F114) -> 10240 | H114: =SUM(H99:H113) -> 1
A116: For 1001-1500 riders 20 places
A117: Placings | B117: 1D | C117: 2D | D117: 3D | E117: 4D | F117: 5D
A118: 1st | B118: =$B$7*$H$118 -> 430.08 | C118: =$C$7*$H$118 -> 358.4 | D118: =$D$7*$H$118 -> 286.72 | E118: =$E$7*$H$118 -> 215.04 | F118: =$F$7*$H$118 -> 143.36 | G118: è | H118: 0.14
A119: 2nd | B119: =$B$7*$H$119 -> 337.92 | C119: =$C$7*$H$119 -> 281.6 | D119: =$D$7*$H$119 -> 225.28 | E119: =$E$7*$H$119 -> 168.96 | F119: =$F$7*$H$119 -> 112.64 | G119: è | H119: 0.11
A120: 3rd | B120: =$B$7*$H$120 -> 276.48 | C120: =$C$7*$H$120 -> 230.4 | D120: =$D$7*$H$120 -> 184.32 | E120: =$E$7*$H$120 -> 138.24 | F120: =$F$7*$H$120 -> 92.16 | G120: è | H120: 0.09
A121: 4th | B121: =$B$7*$H$121 -> 236.544 | C121: =$C$7*$H$121 -> 197.12 | D121: =$D$7*$H$121 -> 157.696 | E121: =$E$7*$H$121 -> 118.272 | F121: =$F$7*$H$121 -> 78.848 | G121: è | H121: 0.077
A122: 5th | B122: =$B$7*$H$122 -> 215.04 | C122: =$C$7*$H$122 -> 179.2 | D122: =$D$7*$H$122 -> 143.36 | E122: =$E$7*$H$122 -> 107.52 | F122: =$F$7*$H$122 -> 71.68 | G122: è | H122: 0.07
A123: 6th | B123: =$B$7*$H$123 -> 199.68 | C123: =$C$7*$H$123 -> 166.4 | D123: =$D$7*$H$123 -> 133.12 | E123: =$E$7*$H$123 -> 99.84 | F123: =$F$7*$H$123 -> 66.56 | G123: è | H123: 0.065
A124: 7th | B124: =$B$7*$H$124 -> 184.32 | C124: =$C$7*$H$124 -> 153.6 | D124: =$D$7*$H$124 -> 122.88 | E124: =$E$7*$H$124 -> 92.16 | F124: =$F$7*$H$124 -> 61.44 | G124: è | H124: 0.06
A125: 8th | B125: =$B$7*$H$125 -> 168.96 | C125: =$C$7*$H$125 -> 140.8 | D125: =$D$7*$H$125 -> 112.64 | E125: =$E$7*$H$125 -> 84.48 | F125: =$F$7*$H$125 -> 56.32 | G125: è | H125: 0.055
A126: 9th | B126: =$B$7*$H$126 -> 153.6 | C126: =$C$7*$H$126 -> 128 | D126: =$D$7*$H$126 -> 102.4 | E126: =$E$7*$H$126 -> 76.8 | F126: =$F$7*$H$126 -> 51.2 | G126: è | H126: 0.05
A127: 10th | B127: =$B$7*$H$127 -> 138.24 | C127: =$C$7*$H$127 -> 115.2 | D127: =$D$7*$H$127 -> 92.16 | E127: =$E$7*$H$127 -> 69.12 | F127: =$F$7*$H$127 -> 46.08 | G127: è | H127: 0.045
A128: 11th | B128: =$B$7*$H$128 -> 122.88 | C128: =$C$7*$H$128 -> 102.4 | D128: =$D$7*$H$128 -> 81.92 | E128: =$E$7*$H$128 -> 61.44 | F128: =$F$7*$H$128 -> 40.96 | G128: è | H128: 0.04
A129: 12th | B129: =$B$7*$H$129 -> 113.664 | C129: =$C$7*$H$129 -> 94.72 | D129: =$D$7*$H$129 -> 75.776 | E129: =$E$7*$H$129 -> 56.832 | F129: =$F$7*$H$129 -> 37.888 | G129: è | H129: 0.037
A130: 13th | B130: =$B$7*$H$130 -> 101.376 | C130: =$C$7*$H$130 -> 84.48 | D130: =$D$7*$H$130 -> 67.584 | E130: =$E$7*$H$130 -> 50.688 | F130: =$F$7*$H$130 -> 33.792 | G130: è | H130: 0.033
A131: 14th | B131: =$B$7*$H$131 -> 89.088 | C131: =$C$7*$H$131 -> 74.24 | D131: =$D$7*$H$131 -> 59.392 | E131: =$E$7*$H$131 -> 44.544 | F131: =$F$7*$H$131 -> 29.696 | G131: è | H131: 0.029
A132: 15th | B132: =$B$7*$H$132 -> 76.8 | C132: =$C$7*$H$132 -> 64 | D132: =$D$7*$H$132 -> 51.2 | E132: =$E$7*$H$132 -> 38.4 | F132: =$F$7*$H$132 -> 25.6 | G132: è | H132: 0.025
A133: 16th | B133: =$B$7*$H$133 -> 64.512 | C133: =$C$7*$H$133 -> 53.76 | D133: =$D$7*$H$133 -> 43.008 | E133: =$E$7*$H$133 -> 32.256 | F133: =$F$7*$H$133 -> 21.504 | G133: è | H133: 0.021
A134: 17th | B134: =$B$7*$H$134 -> 52.224 | C134: =$C$7*$H$134 -> 43.52 | D134: =$D$7*$H$134 -> 34.816 | E134: =$E$7*$H$134 -> 26.112 | F134: =$F$7*$H$134 -> 17.408 | G134: è | H134: 0.017
A135: 18th | B135: =$B$7*$H$135 -> 43.008 | C135: =$C$7*$H$135 -> 35.84 | D135: =$D$7*$H$135 -> 28.672 | E135: =$E$7*$H$135 -> 21.504 | F135: =$F$7*$H$135 -> 14.336 | G135: è | H135: 0.014
A136: 19th | B136: =$B$7*$H$136 -> 36.864 | C136: =$C$7*$H$136 -> 30.72 | D136: =$D$7*$H$136 -> 24.576 | E136: =$E$7*$H$136 -> 18.432 | F136: =$F$7*$H$136 -> 12.288 | G136: è | H136: 0.012
A137: 20th | B137: =$B$7*$H$137 -> 30.72 | C137: =$C$7*$H$137 -> 25.6 | D137: =$D$7*$H$137 -> 20.48 | E137: =$E$7*$H$137 -> 15.36 | F137: =$F$7*$H$137 -> 10.24 | G137: è | H137: 0.01
A138: Totals | B138: =SUM(B118:B137) -> 3072 | C138: =SUM(C118:C137) -> 2560 | D138: 2048 | E138: 1536 | F138: 1024 | G138: =SUM(B138:F138) -> 10240 | H138: =SUM(H118:H137) -> 1
A140: For 1501 or More riders 30 places
A141: Placings | B141: 1D | C141: 2D | D141: 3D | E141: 4D | F141: 5D
A142: 1st | B142: =$B$7*$H142 -> 368.64 | C142: =$C$7*$H142 -> 307.2 | D142: =$D$7*$H142 -> 245.76 | E142: =$E$7*$H142 -> 184.32 | F142: =$F$7*$H142 -> 122.88 | G142: è | H142: 0.12
A143: 2nd | B143: =$B$7*$H143 -> 291.84 | C143: 243.2 | D143: 194.56 | E143: 145.92 | F143: 97.28 | G143: è | H143: 0.095
A144: 3rd | B144: =$B$7*$H144 -> 224.256 | C144: 186.88 | D144: 149.504 | E144: 112.128 | F144: 74.752 | G144: è | H144: 0.073
A145: 4th | B145: =$B$7*$H145 -> 190.464 | C145: 158.72 | D145: 126.976 | E145: 95.232 | F145: 63.488 | G145: è | H145: 0.062
A146: 5th | B146: 153.6 | C146: 128 | D146: 102.4 | E146: 76.8 | F146: 51.2 | G146: è | H146: 0.05
A147: 6th | B147: 138.24 | C147: 115.2 | D147: 92.16 | E147: 69.12 | F147: 46.08 | G147: è | H147: 0.045
A148: 7th | B148: 132.096 | C148: 110.08 | D148: 88.064 | E148: 66.048 | F148: 44.032 | G148: è | H148: 0.043
A149: 8th | B149: 122.88 | C149: 102.4 | D149: 81.92 | E149: 61.44 | F149: 40.96 | G149: è | H149: 0.04
A150: 9th | B150: 113.664 | C150: 94.72 | D150: 75.776 | E150: 56.832 | F150: 37.888 | G150: è | H150: 0.037
A151: 10th | B151: 107.52 | C151: 89.6 | D151: 71.68 | E151: 53.76 | F151: 35.84 | G151: è | H151: 0.035
A152: 11th | B152: 101.376 | C152: 84.48 | D152: 67.584 | E152: 50.688 | F152: 33.792 | G152: è | H152: 0.033
A153: 12th | B153: 95.232 | C153: 79.36 | D153: 63.488 | E153: 47.616 | F153: 31.744 | G153: è | H153: 0.031
A154: 13th | B154: 89.088 | C154: 74.24 | D154: 59.392 | E154: 44.544 | F154: 29.696 | G154: è | H154: 0.029
A155: 14th | B155: 82.944 | C155: 69.12 | D155: 55.296 | E155: 41.472 | F155: 27.648 | G155: è | H155: 0.027
A156: 15th | B156: 76.8 | C156: 64 | D156: 51.2 | E156: 38.4 | F156: 25.6 | G156: è | H156: 0.025
A157: 16th | B157: 73.728 | C157: 61.44 | D157: 49.152 | E157: 36.864 | F157: 24.576 | G157: è | H157: 0.024
A158: 17th | B158: 70.656 | C158: 58.88 | D158: 47.104 | E158: 35.328 | F158: 23.552 | G158: è | H158: 0.023
A159: 18th | B159: 67.584 | C159: 56.32 | D159: 45.056 | E159: 33.792 | F159: 22.528 | G159: è | H159: 0.022
A160: 19th | B160: 64.512 | C160: 53.76 | D160: 43.008 | E160: 32.256 | F160: 21.504 | G160: è | H160: 0.021
A161: 20th | B161: 61.44 | C161: 51.2 | D161: 40.96 | E161: 30.72 | F161: 20.48 | G161: è | H161: 0.02
A162: 21st | B162: 58.368 | C162: 48.64 | D162: 38.912 | E162: 29.184 | F162: 19.456 | G162: è | H162: 0.019
A163: 22nd | B163: 55.296 | C163: 46.08 | D163: 36.864 | E163: 27.648 | F163: 18.432 | G163: è | H163: 0.018
A164: 23rd | B164: 52.224 | C164: 43.52 | D164: 34.816 | E164: 26.112 | F164: 17.408 | G164: è | H164: 0.017
A165: 24th | B165: 49.152 | C165: 40.96 | D165: 32.768 | E165: 24.576 | F165: 16.384 | G165: è | H165: 0.016
A166: 25th | B166: 46.08 | C166: 38.4 | D166: 30.72 | E166: 23.04 | F166: 15.36 | G166: è | H166: 0.015
A167: 26th | B167: 43.008 | C167: 35.84 | D167: 28.672 | E167: 21.504 | F167: 14.336 | G167: è | H167: 0.014
A168: 27th | B168: 39.936 | C168: 33.28 | D168: 26.624 | E168: 19.968 | F168: 13.312 | G168: è | H168: 0.013
A169: 28th | B169: 36.864 | C169: 30.72 | D169: 24.576 | E169: 18.432 | F169: 12.288 | G169: è | H169: 0.012
A170: 29th | B170: 33.792 | C170: 28.16 | D170: 22.528 | E170: 16.896 | F170: 11.264 | G170: è | H170: 0.011
A171: 30th | B171: 30.72 | C171: 25.6 | D171: 20.48 | E171: 15.36 | F171: 10.24 | G171: è | H171: 0.01
A172: Totals | B172: =SUM(B142:B171) -> 3072 | C172: =SUM(C142:C171) -> 2560 | D172: 2048 | E172: 1536 | F172: 1024 | G172: =SUM(B172:F172) -> 10240 | H172: =SUM(H142:H171) -> 1

Sheet DON'T TOUCH (hidden)
A2: Yes | C2: S | D2: 5 | E2: X
C3: A | D3: 10
C4: Y | D4: 15
C5: P | D5: BP
D6: SCR
